Cogmind - Beta 10.1 @@@ ROGUE MODE // 2020.09.28 @ 03:16:23 Player: cptwinky Result: Fortifying 0b10! Performance ------------- Evolutions (9) 4500 Regions Visited (32) 6400 Robots Destroyed (272) 1360 Value Destroyed (17841) 17841 Prototype IDs (74) 1480 Alien Tech Used (13) 2600 Bonus (17310) 17310 TOTAL SCORE: 51491 Bonus ------- High Alert Combat Kills 690 Follower Combat Kills 292 Met Data Miner 300 Met Imprinter 300 Met Zhirov 300 Met Warlord at Base 500 MAIN.C Attacked Warlord 500 Met Warlord at Research 2000 Met MAIN.C 5000 Destroyed MAIN.C Shell 5000 Win 3000 Friendly Fire -572 Cogmind --------- Core Integrity 1020/1600 Matter 300/300 Energy 950/950 System Corruption 0% Temperature Cool (0) Movement Hovering (46) Location By MAIN.C's Side Parts ------- > --- POWER (2) -------- Vortex Chain Reactor > --- PROPULSION (6) --- Combat Gravmag System Combat Gravmag System Combat Linear Gravjet Combat Linear Gravjet Combat Linear Gravjet Combat Linear Gravjet > --- UTILITY (15) ----- High-capacity Storage Unit Advanced Melee Analysis Suite Experimental Target Analyzer Experimental Core Analyzer Experimental Armor Integrity Analyzer Femtoactuators Advanced Actuator Array Force Booster Experimental Core Shielding Experimental Weapon Shielding Centrium Medium Armor Plating SHELL Armor Advanced Shield Generator > --- WEAPON (3) ------- Enhanced Nova Cannon Sigix Broadsword > --- INVENTORY (14) --- Vortex Chain Reactor Combat Linear Gravjet Advanced Energy Well (800) Experimental Energy Well (1000) Nanoactuators Experimental Core Shielding Centrium Medium Armor Plating Centrium Medium Armor Plating Centrium Medium Armor Plating Transdimensional Reconstructor Nanosword Nanosword Peak State ------------ > --- POWER ------------ Vortex Chain Reactor > --- PROPULSION ------- Combat Gravmag System Combat Gravmag System Combat Linear Gravjet Combat Linear Gravjet Combat Linear Gravjet Combat Linear Gravjet > --- UTILITY ---------- High-capacity Storage Unit Advanced Melee Analysis Suite Experimental Target Analyzer Experimental Core Analyzer Experimental Armor Integrity Analyzer Femtoactuators Advanced Actuator Array Force Booster Experimental Core Shielding Experimental Weapon Shielding Centrium Medium Armor Plating SHELL Armor Advanced Shield Generator > --- WEAPON ----------- Nanosword Sigix Broadsword > --- INVENTORY -------- Vortex Chain Reactor Combat Linear Gravjet Advanced Energy Well Experimental Energy Well Nanoactuators Experimental Core Shielding Experimental Core Shielding Centrium Medium Armor Plating Centrium Medium Armor Plating Transdimensional Reconstructor Enhanced Nova Cannon Nanosword [Rating: 234] Favorites ----------- Power Enhanced Nuclear Core Engine Angular Momentum Engine Power Core Enhanced Nuclear Core Reactor Vortex Chain Reactor Propulsion Combat Gravmag System Treads Light Treads Leg Enhanced Flexi-carbon Leg Wheel Wheel Hover Unit Combat Gravmag System Utility High-capacity Storage Unit Device Experimental Sensor Array Storage High-capacity Storage Unit Processor Experimental Signal Interpreter Hackware System Mapper Protection Improved Light Armor Plating Weapon Greatsword Energy Gun Medium Laser Energy Cannon Enhanced Nova Cannon Ballistic Gun Light Assault Rifle Ballistic Cannon Hypervelocity Mass Driver Launcher Mini Smartbomb Launcher Special Weapon Mining Laser Slashing Weapon Greatsword Piercing Weapon Force Lance Special Melee Weapon Improved Datajack Build | -11 -10 -10 -10 -9 -8 -7 -7 -7 -7 -6 -6 -6 -6 -6 -5 -5 -5 -5 -5 -4 -4 -4 -4 -4 -3 -3 -3 -2 -2 -2 -1 -1 ------- Run | Scr Mat Min Exi Min Mat Fac Low Low Dat Pro Fac Low Low Zio Pro Fac Upp Upp Zhi Pro Fac Upp Upp War Pro Res Tes Res Qua Sec Acc Com Slots Evolved 18 | . . . . . 4 2 . . . . 2 . . . . 2 . . . . 2 . . . . 2 . 2 . . 2 . Power 1 | . . . . . . . . . . . . . . . . 1 . . . . . . . . . . . . . . . . Propulsion 3 | . . . . . 1 . . . . . 1 . . . . . . . . . . . . . . 1 . . . . . . Utility 13 | . . . . . 3 2 . . . . 1 . . . . 1 . . . . 2 . . . . 1 . 1 . . 2 . Weapon 1 | . . . . . . . . . . . . . . . . . . . . . . . . . . . . 1 . . . . Parts Attached 498 | 7 6 1 . 11 27 21 6 7 12 5 17 8 8 4 4 23 10 9 8 9 28 17 4 9 2 24 29 24 17 43 53 45 Power 21 | 1 1 . . 1 2 3 . . . . 3 . . . . 2 . . 2 . . . . . . 5 . . . . . 1 Engine 6 | 1 1 . . . 2 . . . . . . . . . . 1 . . 1 . . . . . . . . . . . . . Core 8 | . . . . 1 . 3 . . . . 3 . . . . 1 . . . . . . . . . . . . . . . . Reactor 7 | . . . . . . . . . . . . . . . . . . . 1 . . . . . . 5 . . . . . 1 Propulsion 40 | 2 . 1 . 3 7 4 . . 5 . 2 . 1 . . 5 . . . . . . . 3 . 1 1 1 1 . 2 1 Treads 9 | 2 . . . . 6 1 . . . . . . . . . . . . . . . . . . . . . . . . . . Leg 1 | . . . . . . . . . 1 . . . . . . . . . . . . . . . . . . . . . . . Wheel 5 | . . 1 . 3 1 . . . . . . . . . . . . . . . . . . . . . . . . . . . Hover 25 | . . . . . . 3 . . 4 . 2 . 1 . . 5 . . . . . . . 3 . 1 1 1 1 . 2 1 Flight . | . . . . . . . . . . . . . . . . . . . . . . . . . . . . . . . . . Utility 288 | 2 2 . . . 6 13 2 1 3 5 11 4 2 2 1 11 7 5 6 4 23 10 2 5 2 12 22 15 10 33 33 34 Device 204 | . . . . . 2 2 2 1 1 3 8 2 2 1 1 8 3 4 3 3 16 9 2 4 2 8 18 13 6 31 30 19 Storage 12 | 2 2 . . . . 2 . . 1 . . . . . . . . . 1 . 2 . . . . . . . 1 . . 1 Processor 18 | . . . . . 2 4 . . . 1 . . . . . 1 . 1 . . . . . . . . . . . . 1 8 Hackware 12 | . . . . . 1 2 . . . 1 3 . . . . . . . . . . . . . . 2 . . 2 . . 1 Protection 42 | . . . . . 1 3 . . 1 . . 2 . 1 . 2 4 . 2 1 5 1 . 1 . 2 4 2 1 2 2 5 Artifact . | . . . . . . . . . . . . . . . . . . . . . . . . . . . . . . . . . Weapon 149 | 2 3 . . 7 12 1 4 6 4 . 1 4 5 2 3 5 3 4 . 5 5 7 2 1 . 6 6 8 6 10 18 9 Energy Gun 2 | 1 . . . . . . 1 . . . . . . . . . . . . . . . . . . . . . . . . . Energy Cannon 35 | . . . . . 1 . . 1 . . . . 1 . 1 2 . . . 2 2 1 2 . . 3 3 3 1 4 5 3 Ballistic Gun 18 | 1 3 . . 4 9 . . . . . . 1 . . . . . . . . . . . . . . . . . . . . Ballistic Cannon 2 | . . . . 1 . . . . . . . . . . . . . . . . . 1 . . . . . . . . . . Launcher 23 | . . . . 1 2 . 1 1 1 . . 1 1 1 . 1 1 2 . 1 1 2 . . . . . . 1 1 3 1 Special Weapon 4 | . . . . 1 . . . . . . . . 1 1 . . . . . . . . . . . . . 1 . . . . Impact Weapon . | . . . . . . . . . . . . . . . . . . . . . . . . . . . . . . . . . Slashing Weapon 59 | . . . . . . 1 2 3 3 . 1 2 2 . 2 2 2 2 . 2 2 3 . . . 1 3 2 4 5 10 5 Piercing Weapon 5 | . . . . . . . . . . . . . . . . . . . . . . . . 1 . 2 . 2 . . . . Special Melee Weapon 1 | . . . . . . . . 1 . . . . . . . . . . . . . . . . . . . . . . . . Unidentified Prototypes 36 | . . . . . . 1 . . 2 . 2 . 1 . . . . . 5 . . . . 3 . 2 1 3 1 7 1 7 Parts Lost 27 | . 4 1 . 5 3 . . . . . . . . . . . 1 . . . . 1 . . . . . 3 . . 2 7 Power 2 | . 1 . . 1 . . . . . . . . . . . . . . . . . . . . . . . . . . . . Propulsion 5 | . . 1 . 3 1 . . . . . . . . . . . . . . . . . . . . . . . . . . . Utility 11 | . . . . . . . . . . . . . . . . . . . . . . 1 . . . . . 2 . . 2 6 Weapon 9 | . 3 . . 1 2 . . . . . . . . . . . 1 . . . . . . . . . . 1 . . . 1 Highest Loss Streak 4 | . 2 1 . 3 2 . . . . . . . . . . . 1 . . . . 1 . . . . . 1 . . 1 4 Average Slot Usage (%) 92 | . 100 98 100 97 97 95 91 92 89 92 86 86 86 87 87 89 94 94 92 94 94 94 97 98 100 98 94 94 91 82 83 83 Engine 2 | . 14 14 14 . 8 . . . . . . . . . . . 5 5 4 5 5 5 5 5 5 3 . . . . . . Core 2 | . . . . 12 . 5 7 7 7 7 6 6 6 6 6 10 5 5 3 . . . . . . . . . . . . . Reactor 1 | . . . . . . . . . . . . . . . . . . . 2 5 5 5 5 5 5 3 4 4 4 4 3 3 Treads 4 | . 28 21 14 . 19 11 . . . . . . . . . . . . . . . . . . . . . . . . . . Wheel 1 | . . 6 14 27 5 . . . . . . . . . . . . . . . . . . . . . . . . . . . Hover 19 | . . . . . . 11 23 23 22 23 20 20 21 25 25 22 27 27 27 27 25 25 25 25 25 27 26 24 24 25 23 23 Device 10 | . . . . . 3 3 7 7 7 7 5 5 6 5 6 10 9 10 6 10 15 13 10 10 10 13 16 17 27 14 17 18 Storage 12 | . 28 28 28 28 18 15 15 15 15 15 13 13 12 12 12 11 11 11 11 11 10 10 10 10 10 9 9 8 8 8 7 4 Processor 8 | . . . . . 6 8 23 23 23 22 6 6 6 6 6 5 5 8 11 11 10 10 10 10 10 9 9 8 8 8 10 15 Hackware 9 | . . . . . 9 16 . . . . 20 20 19 18 18 16 16 12 11 11 10 10 10 10 10 10 13 11 8 8 7 3 Protection 6 | . . . . . 7 7 7 7 7 7 6 6 6 6 6 5 6 5 7 5 9 10 15 14 15 10 5 6 . 4 3 4 Ballistic Gun 4 | . 27 28 28 26 17 7 . . . . . . . . . . . . . . . . . . . . . . . . . . Slashing Weapon 4 | . . . . . . 3 6 6 4 7 6 5 5 6 5 4 4 4 5 4 4 4 . . . 1 3 3 6 7 6 6 Naked Turns . | . . . . . . . . . . . . . . . . . . . . . . . . . . . . . . . . . Heaviest Build 167 | 14 71 71 71 74 82 85 66 68 66 66 66 72 72 74 74 90 90 90 88 93 123 126 126 114 114 132 138 139 146 157 159 167 Greatest Support 178 | 40 40 40 20 26 60 66 66 66 66 66 72 72 94 94 94 119 119 119 119 119 119 119 119 119 115 160 140 162 162 162 176 178 Greatest Overweight (x) 33 | . 1 3 4 4 7 2 . 1 1 . . . . . . . . . . . 1 1 1 . . 33 . . . 1 1 1 Average Overweight (x) . | . . 1 3 2 1 . . . . . . . . . . . . . . . . . . . . . . . . . . . Largest Inventory Capacity 22 | 8 20 20 20 20 20 20 18 18 18 18 18 18 18 18 18 18 18 18 18 18 20 20 20 20 20 20 20 20 20 22 22 22 Average Capacity 19 | 5 16 20 20 20 20 18 18 18 18 18 18 18 18 18 18 18 18 18 18 18 19 20 20 20 20 20 20 20 20 20 22 17 Most Carried 22 | 4 14 15 17 20 20 20 18 18 18 18 18 18 18 18 18 18 18 17 18 18 20 20 19 20 20 20 20 20 20 22 22 22 Average Carried 17 | 3 7 14 16 17 19 18 17 17 17 18 17 17 17 17 17 17 15 15 17 17 19 19 18 19 20 19 19 19 19 19 20 16 Final Capacity 22 | 8 20 20 20 20 20 18 18 18 18 18 18 18 18 18 18 18 18 18 18 18 20 20 20 20 20 20 20 20 20 22 22 14 Final Carried 22 | 4 14 14 17 20 20 18 18 18 18 18 18 18 18 18 18 18 15 17 18 18 20 18 19 20 20 20 20 20 20 22 20 13 Class Distribution -------------------- 36% | Hacker-Mutant 17% | Hacker-Ninja 12% | Hauler-Mutant 8% | Hacker-Scout 7% | Gladiator 5% | Hacker-Gladiator 3% | Scavenger-Mutant Dominant Class ---------------- Hauler-Mutant | -10/Materials Hauler-Mutant | -10/Mines Hauler-Mutant | -10/Exiles Hauler-Mutant | -9/Mines Hauler-Mutant | -8/Materials Hacker-Mutant | -7/Factory Gladiator | -7/Lower Caves Commander-Gladiator | -7/Lower Caves Gladiator | -7/Data Miner Gladiator | -6/Proximity Caves Hacker-Mutant | -6/Factory Hacker-Mutant | -6/Lower Caves Hacker-Mutant | -6/Lower Caves Hacker-Mutant | -6/Zion Hacker-Mutant | -5/Proximity Caves Hacker-Mutant | -5/Factory Hacker-Mutant | -5/Upper Caves Hacker-Mutant | -5/Upper Caves Hacker-Mutant | -5/Zhirov Hacker-Scout | -4/Proximity Caves Hacker-Ninja | -4/Factory Hacker-Scout | -4/Upper Caves Hacker-Scout | -4/Upper Caves Hacker-Scout | -4/Warlord Hacker-Scout | -3/Proximity Caves Hacker-Ninja | -3/Research Hacker-Mutant | -3/Testing Hacker-Mutant | -2/Research Hacker-Ninja | -2/Quarantine Hacker-Mutant | -2/Section 7 Hacker-Gladiator | -1/Access Gladiator | -1/Command Resources | -11 -10 -10 -10 -9 -8 -7 -7 -7 -7 -6 -6 -6 -6 -6 -5 -5 -5 -5 -5 -4 -4 -4 -4 -4 -3 -3 -3 -2 -2 -2 -1 -1 ----------- Run | Scr Mat Min Exi Min Mat Fac Low Low Dat Pro Fac Low Low Zio Pro Fac Upp Upp Zhi Pro Fac Upp Upp War Pro Res Tes Res Qua Sec Acc Com Matter Collected 8431 | 274 170 46 . 193 601 274 92 110 160 30 190 174 140 10 35 93 357 237 233 290 503 398 40 49 . 151 686 285 220 780 760 850 Remotely . | . . . . . . . . . . . . . . . . . . . . . . . . . . . . . . . . . Salvage Created 15272 | 76 634 133 . 153 728 469 63 110 395 58 216 85 216 . . 292 281 291 233 109 647 499 49 . . 151 661 137 102 1135 2093 5256 Parts 681 | 1 33 8 . 12 57 32 3 6 19 1 17 5 7 . . 11 7 9 2 3 39 10 . . . 3 24 6 7 52 109 198 Haulers Intercepted 6 | . . . . . 2 1 . . . . . . . . . . . . . . 2 . . . . . . 1 . . . . Recyclers Shooed 3 | . 3 . . . . . . . . . . . . . . . . . . . . . . . . . . . . . . . Parts Field Recycled . | . . . . . . . . . . . . . . . . . . . . . . . . . . . . . . . . . Retrieved Matter . | . . . . . . . . . . . . . . . . . . . . . . . . . . . . . . . . . Parts Self-Destructed 50 | . . . . . . . 1 3 . 1 . 3 . . . . 1 10 2 3 . 7 . 19 . . . . . . . . Prevented 8 | . . . . . . . 1 . . . . . . . . . . . . . . 1 . 6 . . . . . . . . Kills | -11 -10 -10 -10 -9 -8 -7 -7 -7 -7 -6 -6 -6 -6 -6 -5 -5 -5 -5 -5 -4 -4 -4 -4 -4 -3 -3 -3 -2 -2 -2 -1 -1 ------- Run | Scr Mat Min Exi Min Mat Fac Low Low Dat Pro Fac Low Low Zio Pro Fac Upp Upp Zhi Pro Fac Upp Upp War Pro Res Tes Res Qua Sec Acc Com Combat Hostiles Destroyed 203 | . 11 7 . 6 18 4 4 4 4 1 3 3 3 . . 5 2 11 . 6 5 10 . . . . 3 . 4 15 30 44 Melee 92 | . . . . . . 2 . 1 . 1 3 . . . . 1 1 . . 1 5 2 . . . . 3 . 1 12 19 40 Guns 34 | . 11 7 . 2 11 2 . . . . . 1 . . . . . . . . . . . . . . . . . . . . Cannons 3 | . . . . 2 . . . . . . . . . . . . . . . . . . . . . . . . . . . 1 AOE 69 | . . . . 2 7 . 4 3 . . . 2 3 . . 4 1 11 . 5 . 7 . . . . . . 3 3 11 3 Classes Destroyed 24 | 1 4 . . 2 2 2 1 1 . . . . 3 . . . 1 . . 1 2 . . . . . 1 . . . 1 2 Worker 14 | . . . . 2 2 2 . . . . 1 . . . . 2 . . . . 3 . . . . . . . . . 1 1 Builder 6 | . . . . . . . . . . . . . . . . . . . . . 2 . . . . . . . . . 4 . Tunneler 1 | . . . . . . . . . . . . . . . . . . . . . 1 . . . . . . . . . . . Hauler 6 | . . . . . 2 1 . . . . . . . . . . . . . . 2 . . . . . . 1 . . . . Recycler 14 | 1 3 . . . 1 1 . . . . . . . . . . . . . . . . . . . 1 3 . . 1 3 . Minesweeper 2 | . . . . . . . 1 . . . . . . . . . . . . . . 1 . . . . . . . . . . Mechanic 2 | . . . . . . 1 . . . . . . . . . . . . . . . . . . . . . . . . 1 . Operator 4 | . 2 . . . 1 . . . . . 1 . . . . . . . . . . . . . . . . . . . . . Drone 3 | . . . . . . . . . . . . . . . . . . . . . . . . . . . . . . . 1 2 Watcher 12 | . 2 . . . . 2 . . . . 1 . . . . 1 . . . . 1 . . . . . . 1 1 . 2 1 Swarmer 50 | . 3 6 . . 10 . 4 3 . . . 2 . . . . . 8 . . . 2 . . . . . . 4 . 8 . Grunt 48 | . 8 1 . 3 4 1 . . . 1 . . 2 . . 4 . 3 . 4 . 5 . . . . 2 . . 5 3 2 Brawler 2 | . . . . . . . . . . . . . 1 . . . . . . . . . . . . . . . . . 1 . Duelist 3 | . . . . . . . . . . . . . . . . . . . . . . . . . . . . . . . 1 2 Protector 1 | . . . . . . . . . . . . . . . . . . . . . . . . . . . . . . . . 1 Researcher 1 | . . . . . . . . . . . . . 1 . . . . . . . . . . . . . . . . . . . Sentry 15 | . . . . . 4 2 . . . . 1 . . . . 1 . . . . . . . . . . . . . 3 3 1 Hunter 9 | . . . . . . . . . . . . . . . . . . . . 2 . . . . . . . . . . 1 6 Programmer 33 | . . . . . . 1 . . . . 2 . . . . . . . . . 5 2 . . . . 1 . . 6 12 4 S7 Guard 1 | . . . . . . . . . . . . . . . . . . . . . . . . . . . . . . 1 . . Enhanced Grunt 4 | . . . . . . . . . 4 . . . . . . . . . . . . . . . . . . . . . . . Enhanced Q-Series 25 | . . . . . . . . . . . . . . . . . . . . . . . . . . . . . . . . 25 Protovariant L 1 | . . . . . . . . . . . . . . . . . . . . . . . . . . . 1 . . . . . Packrat 2 | . . . . . . . . . . . . . . . . . 1 . . . . . 1 . . . . . . . . . Samaritan 2 | . . . . . . . . . . . . . . . . . 2 . . . . . . . . . . . . . . . Tinkerer 1 | . . . . . . . . . . . . . 1 . . . . . . . . . . . . . . . . . . . Assembled 3 | . . . . 3 . . . . . . . . . . . . . . . . . . . . . . . . . . . . Thug 2 | . . . . . . . . . . . . . . . . . 2 . . . . . . . . . . . . . . . Mutant 3 | . . . . . . . . 1 . . . 1 . . . . . . . . . 1 . . . . . . . . . . Best Kill Streak 11 | 1 3 4 . 3 5 3 4 3 4 1 1 2 3 . . 5 1 4 . 6 5 4 . . . 1 1 1 3 4 11 11 Combat Bots Only 11 | . 3 4 . 2 4 1 4 3 4 1 1 2 3 . . 4 1 4 . 6 2 4 . . . . 1 . 3 4 5 11 Max Kills in Single Turn 4 | 1 1 1 . 2 3 1 2 3 1 1 1 1 2 . . 3 1 3 . 2 1 2 1 . . 1 1 1 3 1 4 2 Gunslinging . | . . . . . . . . . . . . . . . . . . . . . . . . . . . . . . . . . Exploded 4 | . . . . 2 3 . 2 3 . . . 1 2 . . 2 1 3 . 2 . 2 . . . . . . 3 1 4 2 Melee 1 | . . . . . . 1 . 1 . 1 1 . . . . 1 1 . . 1 1 1 . . . . 1 . 1 1 1 1 Uniques/NPCs Destroyed 2 | . . . . . . . . . 1 . . . . . . . . . . . . . . . . . . . . . . 1 Data Miner (-7/Data Miner) MAIN.C Shell (-1/Command) Combat | -11 -10 -10 -10 -9 -8 -7 -7 -7 -7 -6 -6 -6 -6 -6 -5 -5 -5 -5 -5 -4 -4 -4 -4 -4 -3 -3 -3 -2 -2 -2 -1 -1 -------- Run | Scr Mat Min Exi Min Mat Fac Low Low Dat Pro Fac Low Low Zio Pro Fac Upp Upp Zhi Pro Fac Upp Upp War Pro Res Tes Res Qua Sec Acc Com Damage Taken 17190 | . 630 286 . 262 936 215 59 138 50 20 363 45 . . . 374 223 16 . 22 503 784 . 9 . 585 240 712 261 1298 3407 5752 Core 1304 | . 81 68 . 30 126 35 . 31 . . 23 . . . . 21 44 16 . . 40 127 . 9 . 48 . 18 . 89 138 360 Absorbed by Shields 3231 | . . . . . . . . . . . . . . . . . . . . . . . . . . . 9 . . . . 3222 Core Remaining (%) 82 | 100 . . . 28 77 . . . . 90 . . . . 97 . . . . 91 . . . . 84 . 96 . . 100 . 63 Volleys Fired 391 | 8 63 19 . 30 63 8 9 4 8 . . 14 8 . 3 8 3 9 . 10 2 14 7 . . 13 12 2 5 23 23 23 Largest 2 | 2 2 2 . 2 2 2 1 1 1 . . 1 1 . 1 1 1 1 . 1 1 1 1 . . 1 1 1 1 1 1 1 Hottest 120 | 70 70 40 . 100 48 50 50 65 36 . . 80 80 . 65 80 80 80 . 80 98 88 90 . . 113 113 120 120 120 120 120 Shots Fired 565 | 16 126 38 . 51 120 16 9 4 8 . . 14 8 . 3 8 3 9 . 10 2 12 7 . . 13 12 2 5 23 23 23 Gun 367 | 16 126 38 . 40 114 16 6 . . . . 11 . . . . . . . . . . . . . . . . . . . . Cannon 115 | . . . . 4 . . . 2 . . . . 6 . 3 6 . . . 3 2 2 7 . . 12 12 2 2 20 14 18 Launcher 78 | . . . . 2 6 . 3 2 8 . . 3 2 . . 2 3 9 . 7 . 10 . . . 1 . . 3 3 9 5 Special 5 | . . . . 5 . . . . . . . . . . . . . . . . . . . . . . . . . . . . Kinetic 352 | 8 121 38 . 44 114 16 . . . . . 11 . . . . . . . . . . . . . . . . . . . . Thermal 123 | 8 5 . . 5 . . . 2 . . . . 6 . 3 6 . . . 3 2 . 7 . . 12 9 2 2 20 13 18 Explosive 70 | . . . . 2 6 . 3 2 . . . 3 2 . . 2 3 9 . 7 . 10 . . . 1 . . 3 3 9 5 Electromagnetic 20 | . . . . . . . 6 . 8 . . . . . . . . . . . . 2 . . . . 3 . . . 1 . Robot Hit Streak 23 | 3 10 19 . 4 17 12 4 1 4 . . 7 2 . . . 4 8 . . . 12 13 . . 5 8 . 9 . 14 23 Robot Miss Streak 6 | 2 6 3 . 3 5 2 3 1 . . . 1 1 . . . . . . . . . 1 . . . . . . . . 1 Penetration Max . | . . . . . . . . . . . . . . . . . . . . . . . . . . . . . . . . . Secondary Targets 3 | . 1 1 . . 1 . . . . . . . . . . . . . . . . . . . . . . . . . . . Max Gunslinging Chain 1 | . 1 1 . . 1 . . . . . . . . . . . . . . . . . . . . . . . . . . . Shots Hit Robots 831 | 10 83 28 . 27 97 24 5 13 4 2 10 12 7 . . 8 9 7 5 4 33 17 4 . . 14 19 7 8 51 75 248 Core Hits 476 | 2 40 13 . 16 42 13 9 7 6 1 6 6 9 . . 11 12 14 2 16 13 23 1 . . 4 9 4 8 25 57 107 Critical Hits 77 | . 2 1 . . 1 . . 1 . . . . 1 . . . 1 . . . . 1 . . . . . . . 7 12 50 Critical Kills 18 | . . 1 . . 1 . . . . . . . 1 . . . . . . . . . . . . . . . . 3 6 6 Critical Parts Destroyed 50 | . 2 . . . . . . 1 . . . . . . . . 1 . . . . 1 . . . . . . . 2 6 37 Melee Attacks 929 | . . . . . . 24 3 23 2 3 27 14 7 . 7 29 13 5 5 6 81 21 . 4 4 60 31 37 32 86 114 291 Impact . | . . . . . . . . . . . . . . . . . . . . . . . . . . . . . . . . . Slashing 844 | . . . . . . 24 3 15 2 3 27 14 7 . 7 29 13 5 5 6 81 21 . . . 24 28 10 29 86 114 291 Piercing 77 | . . . . . . . . . . . . . . . . . . . . . . . . 4 4 36 3 27 3 . . . Sneak Attacks 53 | . . . . . . 6 . 8 1 1 1 . 1 . . 1 5 . . . 8 1 . . . 2 5 1 . 1 8 3 Combat Hostiles 4 | . . . . . . . . . . . . . . . . . . . . . . . . . . . . . . . 2 2 Follow-up Attacks 81 | . . . . . . . . . . . . . . . . . . . . . . . . . . 1 2 1 1 9 10 57 Damage Inflicted 61705 | 105 746 235 . 360 1608 1523 411 484 420 233 670 416 833 . . 1003 1515 2114 781 2038 2544 3089 157 . . 804 1407 445 844 4325 8976 23619 Guns 2838 | 105 746 235 . 172 1152 217 64 . . . . 147 . . . . . . . . . . . . . . . . . . . . Cannons 814 | . . . . 50 . . . . . . . . 80 . . . . . . . . 84 157 . . 78 105 . . . . 260 Explosions 13100 | . . . . 138 456 . 347 260 264 . . 269 262 . . 454 658 1650 . 1831 . 1742 . . . . . . 440 658 2478 1193 Melee 44953 | . . . . . . 1306 . 224 156 233 670 . 491 . . 549 857 464 781 207 2544 1263 . . . 726 1302 445 404 3667 6498 22166 Ramming . | . . . . . . . . . . . . . . . . . . . . . . . . . . . . . . . . . Kinetic 2721 | 42 706 235 . 222 1152 217 . . . . . 147 . . . . . . . . . . . . . . . . . . . . Thermal 712 | 63 40 . . . . . 34 . . . . . 80 . . . . . . . . . 157 . . 78 . . . . . 260 Explosive 12802 | . . . . 138 456 . 313 260 . . . 269 262 . . 454 658 1650 . 1831 . 1742 . . . . . . 440 658 2478 1193 Electromagnetic 517 | . . . . . . . 64 . 264 . . . . . . . . . . . . 84 . . . . 105 . . . . . Impact . | . . . . . . . . . . . . . . . . . . . . . . . . . . . . . . . . . Slashing 44615 | . . . . . . 1306 . 224 156 233 670 . 491 . . 549 857 464 781 207 2544 1263 . . . 558 1180 397 404 3667 6498 22166 Piercing 338 | . . . . . . . . . . . . . . . . . . . . . . . . . . 168 122 48 . . . . Highest Corruption 11 | . . . . 11 . . . . . . 1 1 1 1 . . . . . . 2 4 4 6 . 5 2 . . 3 . . Average Corruption 2 | . . . . 10 . . . . . . 1 1 1 1 . . . . . . 1 2 4 4 . 4 1 . . 2 . . Corruption Purged 5 | . . . . . . . . . . . . . . . . . . . . . . . . . . 3 2 . . . . . Effects 76 | . . . . 16 . . . . . . . 1 1 1 . . . . . . 8 16 5 1 . 4 2 . . 21 . . Message Errors 19 | . . . . 2 . . . . . . . . . . . . . . . . 1 5 3 . . 1 . . . 7 . . Matter Fused 9 | . . . . 2 . . . . . . . . . . . . . . . . . . . 1 . 1 . . . 5 . . Heat Flow Errors 10 | . . . . 2 . . . . . . . . . . . . . . . . . 3 2 . . . 1 . . 2 . . Energy Discharges 13 | . . . . 3 . . . . . . . . 1 1 . . . . . . 3 3 . . . . . . . 2 . . Data Loss (minor) 11 | . . . . 2 . . . . . . . 1 . . . . . . . . 1 2 . . . 1 . . . 4 . . Misdirections 4 | . . . . 4 . . . . . . . . . . . . . . . . . . . . . . . . . . . . Targeting Errors 8 | . . . . 1 . . . . . . . . . . . . . . . . 3 1 . . . 1 1 . . 1 . . Weapon Failures 2 | . . . . . . . . . . . . . . . . . . . . . . 2 . . . . . . . . . . Overload Shots . | . . . . . . . . . . . . . . . . . . . . . . . . . . . . . . . . . Overflow Damage 6018 | . . . . . . 383 . . . 137 10 . 108 . . 64 329 476 86 114 506 530 37 . . 143 301 16 207 335 1040 1196 Projectiles 47 | . . . . . . . . . . . . . . . . . . . . . . . 37 . . 10 . . . . . . Explosions 795 | . . . . . . . . . . . . . . . . . 25 191 . 52 . 219 . . . . . . 106 48 99 55 Melee 5176 | . . . . . . 383 . . . 137 10 . 108 . . 64 304 285 86 62 506 311 . . . 133 301 16 101 287 941 1141 Knockbacks 1 | . . . . 1 . . . . . . . . . . . . . . . . . . . . . . . . . . . . Impact . | . . . . . . . . . . . . . . . . . . . . . . . . . . . . . . . . . Kinetic 1 | . . . . 1 . . . . . . . . . . . . . . . . . . . . . . . . . . . . Secondary . | . . . . . . . . . . . . . . . . . . . . . . . . . . . . . . . . . Self-Inflicted Damage 72 | . . . . . . . . 31 . . . . . . . . . . . . . 19 . . . . . . . . . 22 Shots 5 | . . . . . . . . 1 . . . . . . . . . . . . . 3 . . . . . . . . . 1 Rammed . | . . . . . . . . . . . . . . . . . . . . . . . . . . . . . . . . . Targets Rammed . | . . . . . . . . . . . . . . . . . . . . . . . . . . . . . . . . . Kicked . | . . . . . . . . . . . . . . . . . . . . . . . . . . . . . . . . . Crushed . | . . . . . . . . . . . . . . . . . . . . . . . . . . . . . . . . . Highest Temperature 418 | 80 40 18 . 221 16 26 6 32 . . . 120 84 . 42 128 214 208 8 128 150 279 227 114 . 418 180 100 . 245 72 4 Average Temperature 44 | 38 10 10 . 47 4 8 2 17 . . . 60 39 . 23 34 23 32 4 71 46 108 59 15 . 88 75 48 . 31 40 3 Received Heat Transfer 1729 | . 234 63 . 87 351 33 . . 6 9 24 . . . . 75 90 . . . . 144 . . . 60 24 36 9 81 117 286 Effects 3 | . . . . . . . . . . . . . . . . . . . . . . . 1 . . 2 . . . . . . Shutdowns 1 | . . . . . . . . . . . . . . . . . . . . . . . . . . 1 . . . . . . Energy Bleed 1 | . . . . . . . . . . . . . . . . . . . . . . . 1 . . . . . . . . . Damage (minor) 1 | . . . . . . . . . . . . . . . . . . . . . . . . . . 1 . . . . . . Siege Activations . | . . . . . . . . . . . . . . . . . . . . . . . . . . . . . . . . . Robots Corrupted 6 | . . . . . . . . . 4 . . . . . . . . . . . . 1 . . . . 1 . . . . . Combat Hostiles 5 | . . . . . . . . . 4 . . . . . . . . . . . . 1 . . . . . . . . . . Parts Fried 17 | . . . . . . . 1 . 7 . . . . . . . . . . . . 2 . . . . 4 . . . . 3 Impact Corruptions . | . . . . . . . . . . . . . . . . . . . . . . . . . . . . . . . . . Robots Melted . | . . . . . . . . . . . . . . . . . . . . . . . . . . . . . . . . . Combat Hostiles . | . . . . . . . . . . . . . . . . . . . . . . . . . . . . . . . . . Parts Melted 1 | . . . . . . . . . . . . . . . . . . . . . . . . . . . . . . . 1 . Heat Transferred 866 | 185 111 . . . . . 50 . . . . . 148 . . . . . . . . . 100 . . 50 . . . . . 222 Parts Sabotaged . | . . . . . . . . . . . . . . . . . . . . . . . . . . . . . . . . . Parts Stolen . | . . . . . . . . . . . . . . . . . . . . . . . . . . . . . . . . . Parts Stripped . | . . . . . . . . . . . . . . . . . . . . . . . . . . . . . . . . . Power Chain Reactions 1 | . . . . . . . 1 . . . . . . . . . . . . . . . . . . . . . . . . . Missiles Intercepted . | . . . . . . . . . . . . . . . . . . . . . . . . . . . . . . . . . Alert | -11 -10 -10 -10 -9 -8 -7 -7 -7 -7 -6 -6 -6 -6 -6 -5 -5 -5 -5 -5 -4 -4 -4 -4 -4 -3 -3 -3 -2 -2 -2 -1 -1 ------- Run | Scr Mat Min Exi Min Mat Fac Low Low Dat Pro Fac Low Low Zio Pro Fac Upp Upp Zhi Pro Fac Upp Upp War Pro Res Tes Res Qua Sec Acc Com Peak Influence 918 | 5 293 170 . 75 240 172 . . . . 505 . . . . 532 . . . . 245 . . . . 115 155 95 242 423 715 918 Initial 279 | . 3 10 . . 1 . . . . . 12 . . . . . . . . . 88 . . . . . 31 . 31 60 45 279 Average 141 | . 96 114 . 43 93 42 . . . . 109 . . . . 83 . . . . 102 . . . . 45 72 47 114 204 448 548 Maximum Alert Level 3 | . 1 . . . 1 . . . . . 2 . . . . 2 . . . . 1 . . . . . . . 1 2 3 3 Low Security (%) 79 | 100 83 100 . 100 95 100 . . . . 85 . . . . 92 . . . . 90 . . . . 100 100 100 73 50 8 53 Level 1 10 | . 16 . . . 4 . . . . . . . . . . . . . . . 9 . . . . . . . 26 47 24 12 Level 2 8 | . . . . . . . . . . . 14 . . . . 7 . . . . . . . . . . . . . 2 66 13 Level 3 1 | . . . . . . . . . . . . . . . . . . . . . . . . . . . . . . . . 20 Level 4 . | . . . . . . . . . . . . . . . . . . . . . . . . . . . . . . . . . Level 5 . | . . . . . . . . . . . . . . . . . . . . . . . . . . . . . . . . . High Security . | . . . . . . . . . . . . . . . . . . . . . . . . . . . . . . . . . Max Security . | . . . . . . . . . . . . . . . . . . . . . . . . . . . . . . . . . Squads Dispatched 45 | . 3 . . . 2 2 . . . . 6 . . . . 3 . . . . 5 . . . . 4 3 2 4 3 6 2 Investigation 9 | . 1 . . . . 1 . . . . . . . . . 2 . . . . 2 . . . . 1 1 . 1 . . . Extermination 18 | . . . . . . 1 . . . . 3 . . . . 1 . . . . 3 . . . . 2 1 . 2 2 2 1 Reinforcement 13 | . 2 . . . 2 . . . . . 1 . . . . . . . . . . . . . . 1 1 2 1 1 2 . Assault 5 | . . . . . . . . . . . 2 . . . . . . . . . . . . . . . . . . . 2 1 Garrison . | . . . . . . . . . . . . . . . . . . . . . . . . . . . . . . . . . Intercept . | . . . . . . . . . . . . . . . . . . . . . . . . . . . . . . . . . Construction Impeded 1 | . . . . . . . . . . . . . . . . . . . . . . . . . . . . . . . 1 . Haulers Reinforced . | . . . . . . . . . . . . . . . . . . . . . . . . . . . . . . . . . Stealth | -11 -10 -10 -10 -9 -8 -7 -7 -7 -7 -6 -6 -6 -6 -6 -5 -5 -5 -5 -5 -4 -4 -4 -4 -4 -3 -3 -3 -2 -2 -2 -1 -1 --------- Run | Scr Mat Min Exi Min Mat Fac Low Low Dat Pro Fac Low Low Zio Pro Fac Upp Upp Zhi Pro Fac Upp Upp War Pro Res Tes Res Qua Sec Acc Com Distress Signals 29 | . 1 . . . . . . . . . . . . . . 1 . . . . . . . . . 1 1 5 . 1 6 13 Communications Jammed 100 | . . . . . . 8 . . . . . . . . . 15 . . . . . . . . . . . . . 11 33 33 Distress Signals 83 | . . . . . . 8 . . . . . . . . . 15 . . . . . . . . . . . . . 11 24 25 Times Spotted 412 | . 23 7 . 7 28 10 5 3 2 1 17 2 . . . 11 7 5 . 7 19 14 . 1 . 14 7 28 8 25 85 76 Peak Tracking Total 13 | . 6 4 . 3 4 3 4 3 3 1 11 2 1 . . 5 6 3 . 6 3 4 . 1 . 6 2 6 1 6 13 8 Tactical Retreats 48 | . 1 1 . 1 . 2 2 . 1 . 1 . . . . 3 . . . 1 1 4 . . . 3 1 3 3 5 13 2 Traps | -11 -10 -10 -10 -9 -8 -7 -7 -7 -7 -6 -6 -6 -6 -6 -5 -5 -5 -5 -5 -4 -4 -4 -4 -4 -3 -3 -3 -2 -2 -2 -1 -1 ------- Run | Scr Mat Min Exi Min Mat Fac Low Low Dat Pro Fac Low Low Zio Pro Fac Upp Upp Zhi Pro Fac Upp Upp War Pro Res Tes Res Qua Sec Acc Com Traps Triggered 10 | . . . . . 2 1 . . . . 1 . . . . 2 . . . . . 1 . . . . 1 . 2 . . . Indirectly . | . . . . . . . . . . . . . . . . . . . . . . . . . . . . . . . . . Trap Hack Attempts . | . . . . . . . . . . . . . . . . . . . . . . . . . . . . . . . . . Triggered . | . . . . . . . . . . . . . . . . . . . . . . . . . . . . . . . . . Disarmed 4 | . . . . . . . . . . . . . . . . . . . . . . . . . . . 4 . . . . . Reprogrammed 19 | . . . . . . 9 . . . . . . . . . . . . . . 4 . . . . . . . 6 . . . Reused 6 | . . . . . . . . . 1 . . . . . . . . . . . . 4 . . . . . . 1 . . . Traps Extracted . | . . . . . . . . . . . . . . . . . . . . . . . . . . . . . . . . . Installed 8 | . . . . . . . . . 1 . . . . . . . . . . . . 7 . . . . . . . . . . Triggered 11 | . . . . . . . . . . . . . 2 . 1 . . . . . . 4 . 3 . . . . 1 . . . Exploded 3 | . . . . . 3 . . . . . . . . . . . . . . . . . . . . . . . . . . . Machines | -11 -10 -10 -10 -9 -8 -7 -7 -7 -7 -6 -6 -6 -6 -6 -5 -5 -5 -5 -5 -4 -4 -4 -4 -4 -3 -3 -3 -2 -2 -2 -1 -1 ---------- Run | Scr Mat Min Exi Min Mat Fac Low Low Dat Pro Fac Low Low Zio Pro Fac Upp Upp Zhi Pro Fac Upp Upp War Pro Res Tes Res Qua Sec Acc Com Machines Disabled 29 | . . . . . 1 . . 1 1 . 3 2 . . . . . . . . . . . . . . 4 . 5 10 . 2 Max in Single Turn 1 | . . . . . 1 . . 1 1 . . 1 . . . . . . . . . . . . . . 1 . 1 1 . 1 Garrison Access 9 | . . . . . . 1 . . . . . . . . . 2 . . . . . . . . . 1 1 2 . 1 1 . Machines Sabotaged . | . . . . . . . . . . . . . . . . . . . . . . . . . . . . . . . . . Garrisons Compromised . | . . . . . . . . . . . . . . . . . . . . . . . . . . . . . . . . . Overloaded Fab Kills . | . . . . . . . . . . . . . . . . . . . . . . . . . . . . . . . . . Fab Network Shutdowns 2 | . . . . . . . . . . . 1 . . . . 1 . . . . . . . . . . . . . . . . Hacking | -11 -10 -10 -10 -9 -8 -7 -7 -7 -7 -6 -6 -6 -6 -6 -5 -5 -5 -5 -5 -4 -4 -4 -4 -4 -3 -3 -3 -2 -2 -2 -1 -1 --------- Run | Scr Mat Min Exi Min Mat Fac Low Low Dat Pro Fac Low Low Zio Pro Fac Upp Upp Zhi Pro Fac Upp Upp War Pro Res Tes Res Qua Sec Acc Com Machines Accessed 138 | . 4 . 1 . 5 13 . 1 4 . 12 2 . 1 . 19 . 1 4 . 11 . 1 2 . 8 10 3 16 8 10 2 Terminals 70 | . 3 . . . 4 7 . . . . 6 . . . . 7 . 1 . . 7 . . . . 2 5 1 13 6 6 2 Fabricators 11 | . . . . . . 2 . . . . 2 . . . . 2 . . . . 2 . . . . 1 1 . . . 1 . Repair Stations 9 | . . . . . . . . . . . 2 . . . . 2 . . . . 1 . . . . 1 2 . 1 . . . Recycling Units 9 | . 1 . . . . 1 . . . . 1 . . . . 4 . . . . . . . . . . . . . . 2 . Scanalyzers 12 | . . . . . 1 2 . . . . 1 . . . . 1 . . . . 1 . . . . 2 1 . 2 1 . . Garrison Access 11 | . . . . . . 1 . . . . . . . . . 3 . . . . . . . . . 2 1 2 . 1 1 . Total Hacks 522 | . 12 . 1 . 15 39 . 1 29 . 53 8 . 3 . 82 . 5 17 . 52 . 1 2 . 37 36 9 51 30 36 3 Successful 333 | . 5 . 1 . 8 22 . 1 29 . 37 8 . 3 . 48 . 3 17 . 34 . 1 2 . 25 25 3 31 15 14 1 Failed 187 | . 7 . . . 7 17 . . . . 15 . . . . 34 . 2 . . 17 . . . . 12 11 6 20 15 22 2 Catastrophic 25 | . 2 . . . . . . . . . 3 . . . . 5 . . . . 2 . . . . 1 2 1 3 4 1 1 Database Lockouts 2 | . . . . . . . . . . . 1 . . . . . . . . . 1 . . . . . . . . . . . Manual 214 | . 7 . . . 10 16 . . . . 22 . . . . 41 . 5 . . 21 . . 1 . 8 18 4 18 24 16 3 Terminals 261 | . 9 . . . 12 20 . . . . 18 . . . . 43 . 5 . . 32 . . . . 9 22 4 34 26 24 3 Fabricators 55 | . . . . . . 9 . . . . 17 . . . . 7 . . . . 8 . . . . 6 3 . . . 5 . Repair Stations 52 | . . . . . . . . . . . 6 . . . . 11 . . . . 2 . . . . 11 9 . 13 . . . Recycling Units 27 | . 3 . . . . 3 . . . . 6 . . . . 10 . . . . . . . . . . . . . . 5 . Scanalyzers 41 | . . . . . 3 5 . . . . 6 . . . . 4 . . . . 10 . . . . 7 1 . 4 1 . . Garrison Access 24 | . . . . . . 2 . . . . . . . . . 7 . . . . . . . . . 4 1 5 . 3 2 . Terminal Hacks 159 | . 5 . 1 . 5 7 . 1 29 . 8 8 . 3 . 17 . 3 17 . 13 . 1 2 . 1 9 1 12 10 6 . Record 24 | . . . 1 . . . . . 11 . . 7 . . . . . . 5 . . . . . . . . . . . . . Part Schematic 27 | . 1 . . . . . . . 10 . 1 . . 3 . 2 . 3 4 . 1 . . . . . 1 . 1 . . . Robot Schematic 6 | . . . . . . 1 . . 5 . . . . . . . . . . . . . . . . . . . . . . . Robot Analysis 9 | . 3 . . . 1 . . . . . . . . . . . . . 4 . . . . . . . . . 1 . . . Prototype ID Bank 8 | . . . . . . . . . 3 . . . . . . . . . 4 . 1 . . . . . . . . . . . Open Door 9 | . . . . . . . . 1 . . . 1 . . . . . . . . . . 1 2 . . 1 . . 2 1 . Level Access Points 1 | . . . . . . . . . . . . . . . . . . . . . . . . . . . . . . 1 . . Branch Access Points 8 | . . . . . 1 1 . . . . 1 . . . . 1 . . . . 1 . . . . 1 . 1 . . 1 . Machine Index 2 | . . . . . . . . . . . 1 . . . . . . . . . . . . . . . 1 . . . . . Terminal Index 1 | . . . . . . 1 . . . . . . . . . . . . . . . . . . . . . . . . . . Fabricator Index 3 | . . . . . . 1 . . . . . . . . . 1 . . . . 1 . . . . . . . . . . . Repair Station Index 1 | . . . . . . . . . . . . . . . . . . . . . 1 . . . . . . . . . . . Garrison Index 1 | . . . . . . . . . . . . . . . . . . . . . . . . . . . . . 1 . . . Alert Level 4 | . . . . . . . . . . . 1 . . . . . . . . . . . . . . . . . . 3 . . Unreport Threat 19 | . . . . . 2 . . . . . . . . . . 6 . . . . 2 . . . . . 2 . 1 3 3 . Locate Traps 9 | . 1 . . . . 1 . . . . . . . . . 2 . . . . 2 . . . . . 1 . 1 . 1 . Disarm Traps 1 | . . . . . . . . . . . . . . . . . . . . . . . . . . . 1 . . . . . Reprogram Traps 4 | . . . . . . 2 . . . . . . . . . . . . . . 1 . . . . . . . 1 . . . Extermination Status 1 | . . . . . . . . . . . . . . . . 1 . . . . . . . . . . . . . . . . Recall Investigation 2 | . . . . . . . . . . . . . . . . 1 . . . . . . . . . . . . 1 . . . Recall Extermination 5 | . . . . . . . . . . . 1 . . . . 1 . . . . 1 . . . . . . . 2 . . . Recall Reinforcements 3 | . . . . . . . . . . . . . . . . . . . . . . . . . . . 1 . 1 1 . . Hauler Manifests 1 | . . . . . . . . . . . . . . . . . . . . . 1 . . . . . . . . . . . Registered Components 3 | . . . . . . . . . . . 1 . . . . . . . . . . . . . . . 1 . 1 . . . Registered Prototypes 2 | . . . . . . . . . . . . . . . . . . . . . 1 . . . . . . . 1 . . . Zone Layout 5 | . . . . . 1 . . . . . 2 . . . . 2 . . . . . . . . . . . . . . . . Fabricator Hacks 28 | . . . . . . 4 . . . . 9 . . . . 5 . . . . 3 . . . . 4 1 . . . 2 . Load Schematic 15 | . . . . . . 2 . . . . 4 . . . . 3 . . . . 2 . . . . 2 1 . . . 1 . Build 13 | . . . . . . 2 . . . . 5 . . . . 2 . . . . 1 . . . . 2 . . . . 1 . Repair Station Hacks 37 | . . . . . . . . . . . 6 . . . . 7 . . . . 2 . . . . 8 6 . 8 . . . Scan Component 19 | . . . . . . . . . . . 3 . . . . 4 . . . . 1 . . . . 4 3 . 4 . . . Repair 18 | . . . . . . . . . . . 3 . . . . 3 . . . . 1 . . . . 4 3 . 4 . . . Recycling Unit Hacks 8 | . . . . . . 1 . . . . 1 . . . . 4 . . . . . . . . . . . . . . 2 . Retrieve Components 8 | . . . . . . 1 . . . . 1 . . . . 4 . . . . . . . . . . . . . . 2 . Scanalyzer 34 | . . . . . 3 2 . . . . 6 . . . . 4 . . . . 9 . . . . 7 . . 3 . . . Insert Component 18 | . . . . . 1 1 . . . . 3 . . . . 2 . . . . 4 . . . . 4 . . 3 . . . Analyze 16 | . . . . . 2 1 . . . . 3 . . . . 2 . . . . 5 . . . . 3 . . . . . . Garrison Access Hacks 9 | . . . . . . 1 . . . . . . . . . 2 . . . . . . . . . 1 1 2 . 1 1 . Seal Access 9 | . . . . . . 1 . . . . . . . . . 2 . . . . . . . . . 1 1 2 . 1 1 . Unauthorized Hacks 58 | . . . . . . 7 . . . . 7 . . . . 9 . . . . 7 . . . . 4 8 . 8 4 3 1 Terminals 39 | . . . . . . 4 . . . . 2 . . . . 4 . . . . 4 . . . . 3 7 . 8 3 3 1 Track 13 | . . . . . . 3 . . . . . . . . . 2 . . . . 1 . . . . 1 1 . 4 1 . . Assimilate 5 | . . . . . . . . . . . . . . . . . . . . . 1 . . . . . 1 . 1 1 1 . Botnet 18 | . . . . . . 1 . . . . 2 . . . . 2 . . . . 2 . . . . 2 2 . 3 1 2 1 Disrupt 2 | . . . . . . . . . . . . . . . . . . . . . . . . . . . 2 . . . . . Operators 1 | . . . . . . . . . . . . . . . . . . . . . . . . . . . 1 . . . . . Fabricators 10 | . . . . . . 3 . . . . 3 . . . . 1 . . . . 2 . . . . 1 . . . . . . Report 1 | . . . . . . 1 . . . . . . . . . . . . . . . . . . . . . . . . . . Prioritize 2 | . . . . . . . . . . . 1 . . . . . . . . . 1 . . . . . . . . . . . Siphon 5 | . . . . . . 1 . . . . 2 . . . . . . . . . 1 . . . . 1 . . . . . . Haulers 2 | . . . . . . 1 . . . . . . . . . 1 . . . . . . . . . . . . . . . . Repair Stations . | . . . . . . . . . . . . . . . . . . . . . . . . . . . . . . . . . Recycling Units 5 | . . . . . . . . . . . 2 . . . . 3 . . . . . . . . . . . . . . . . Recyclers 1 | . . . . . . . . . . . 1 . . . . . . . . . . . . . . . . . . . . . Mask 3 | . . . . . . . . . . . 1 . . . . 2 . . . . . . . . . . . . . . . . Tunnel 1 | . . . . . . . . . . . . . . . . 1 . . . . . . . . . . . . . . . . Scanalyzers 3 | . . . . . . . . . . . . . . . . . . . . . 1 . . . . . 1 . . 1 . . Researchers 2 | . . . . . . . . . . . . . . . . . . . . . . . . . . . 1 . . 1 . . Extract 1 | . . . . . . . . . . . . . . . . . . . . . 1 . . . . . . . . . . . Garrison Access 1 | . . . . . . . . . . . . . . . . 1 . . . . . . . . . . . . . . . . Reprogram 1 | . . . . . . . . . . . . . . . . 1 . . . . . . . . . . . . . . . . Data Cores Recovered . | . . . . . . . . . . . . . . . . . . . . . . . . . . . . . . . . . Used . | . . . . . . . . . . . . . . . . . . . . . . . . . . . . . . . . . Hacking Detections 94 | . 4 . . . 5 11 . . . . 11 . . . . 14 . 1 . . 8 . . . . 5 4 2 11 7 10 1 Full Trace Events 7 | . 1 . . . . 1 . . . . . . . . . 1 . . . . 1 . . . . 1 1 . 1 . . . Feedback Events 1 | . . . . . . . . . . . . . . . . . . . . . . . . . . . 1 . . . . . Corruption 1 | . . . . . . . . . . . . . . . . . . . . . . . . . . . 1 . . . . . Feedback Blocked . | . . . . . . . . . . . . . . . . . . . . . . . . . . . . . . . . . Robot Schematics Acquired 6 | . . . . . . 1 . . 5 . . . . . . . . . . . . . . . . . . . . . . . Robots Built 2 | . . . . . . . . . . . 2 . . . . . . . . . . . . . . . . . . . . . Matter 189 | . . . . . . . . . . . 189 . . . . . . . . . . . . . . . . . . . . . Time 67 | . . . . . . . . . . . 67 . . . . . . . . . . . . . . . . . . . . . Total Robot Build Rating 8 | . . . . . . . . . . . 8 . . . . . . . . . . . . . . . . . . . . . Part Schematics Acquired 42 | . 1 . . . 1 1 . . 10 . 2 . . 3 . 4 . 3 4 . 8 . . . . 3 1 . 1 . . . Parts Built 14 | . . . . . . 4 . . . . 3 . . . . 2 . . . . 1 . . . . 2 . . . . 2 . Matter 2360 | . . . . . . 284 . . . . 664 . . . . 570 . . . . 263 . . . . 301 . . . . 278 . Time 996 | . . . . . . 190 . . . . 321 . . . . 152 . . . . 187 . . . . 100 . . . . 46 . Total Part Build Rating 82 | . . . . . . 20 . . . . 16 . . . . 10 . . . . 7 . . . . 11 . . . . 18 . Parts Repaired 18 | . . . . . . . . . . . 3 . . . . 3 . . . . 1 . . . . 4 3 . 4 . . . Time 792 | . . . . . . . . . . . 164 . . . . 64 . . . . 22 . . . . 311 72 . 159 . . . Parts Recycled . | . . . . . . . . . . . . . . . . . . . . . . . . . . . . . . . . . Recycled Matter . | . . . . . . . . . . . . . . . . . . . . . . . . . . . . . . . . . Retrieved Matter . | . . . . . . . . . . . . . . . . . . . . . . . . . . . . . . . . . Retrieved Components 25 | . . . . . . 9 . . . . 2 . . . . 11 . . . . . . . . . . . . . . 3 . Parts Scanalyzed 12 | . . . . . 1 1 . . . . 2 . . . . 2 . . . . 3 . . . . 3 . . . . . . Part Schematics Acquired 11 | . . . . . 1 1 . . . . 1 . . . . 2 . . . . 3 . . . . 3 . . . . . . Parts Damaged 1 | . . . . . . . . . . . . . . . . . . . . . 1 . . . . . . . . . . . Bothacking | -11 -10 -10 -10 -9 -8 -7 -7 -7 -7 -6 -6 -6 -6 -6 -5 -5 -5 -5 -5 -4 -4 -4 -4 -4 -3 -3 -3 -2 -2 -2 -1 -1 ------------ Run | Scr Mat Min Exi Min Mat Fac Low Low Dat Pro Fac Low Low Zio Pro Fac Upp Upp Zhi Pro Fac Upp Upp War Pro Res Tes Res Qua Sec Acc Com Used RIF Installer . | . . . . . . . . . . . . . . . . . . . . . . . . . . . . . . . . . Robots Hacked . | . . . . . . . . . . . . . . . . . . . . . . . . . . . . . . . . . Non-combat . | . . . . . . . . . . . . . . . . . . . . . . . . . . . . . . . . . Combat . | . . . . . . . . . . . . . . . . . . . . . . . . . . . . . . . . . Robot Hacks Applied . | . . . . . . . . . . . . . . . . . . . . . . . . . . . . . . . . . Relay Couplers Released . | . . . . . . . . . . . . . . . . . . . . . . . . . . . . . . . . . Robots Rewired 5 | . . . . . . . . 4 . . . . . . . . . . . . . . . . . . 1 . . . . . Allies Hacked . | . . . . . . . . . . . . . . . . . . . . . . . . . . . . . . . . . Hacks Repelled . | . . . . . . . . . . . . . . . . . . . . . . . . . . . . . . . . . Allies | -11 -10 -10 -10 -9 -8 -7 -7 -7 -7 -6 -6 -6 -6 -6 -5 -5 -5 -5 -5 -4 -4 -4 -4 -4 -3 -3 -3 -2 -2 -2 -1 -1 -------- Run | Scr Mat Min Exi Min Mat Fac Low Low Dat Pro Fac Low Low Zio Pro Fac Upp Upp Zhi Pro Fac Upp Upp War Pro Res Tes Res Qua Sec Acc Com Total Allies 15 | . . . . . . . . 4 . . 2 . . . . 3 . . . . 1 . . . . . 2 . 1 1 1 . Largest Group 4 | . . . . . . . . 4 4 . 2 . . . . 3 3 3 . . 1 . . . . . 1 . 1 1 1 . Highest-Rated Group 126 | . . . . . . . . 124 124 . 76 . . . . 87 87 83 . . 26 . . . . . 126 . 10 26 26 . Highest-Rated Ally 126 | . . . . . . . . 31 31 . 38 . . . . 29 29 29 . . 26 . . . . . 126 . 10 26 26 . Total Orders 15 | . . . . . . . . 2 1 . . . . . . . . . . . 3 . . . . . 7 . . 1 1 . STAY 11 | . . . . . . . . 1 1 . . . . . . . . . . . 2 . . . . . 5 . . 1 1 . FOLLOW 4 | . . . . . . . . 1 . . . . . . . . . . . . 1 . . . . . 2 . . . . . Ally Attacks 63 | . . . . . . . . 2 22 . 9 . . . . . 20 10 . . . . . . . . . . . . . . Total Damage 1545 | . . . . . . . . 44 258 . 868 . . . . . 260 115 . . . . . . . . . . . . . . Kills 10 | . . . . . . . . 1 . . 4 . . . . . 5 . . . . . . . . . . . . . . . Allies Corrupted 1 | . . . . . . . . . . . . . . . . . . . . . . . . . . . 1 . . . . . Allies Melted 2 | . . . . . . . . . . . . . . . . . . . . . . . . . . . . 1 . . . 1 Intel | -11 -10 -10 -10 -9 -8 -7 -7 -7 -7 -6 -6 -6 -6 -6 -5 -5 -5 -5 -5 -4 -4 -4 -4 -4 -3 -3 -3 -2 -2 -2 -1 -1 ------- Run | Scr Mat Min Exi Min Mat Fac Low Low Dat Pro Fac Low Low Zio Pro Fac Upp Upp Zhi Pro Fac Upp Upp War Pro Res Tes Res Qua Sec Acc Com Robot Analysis Total 9 | . 3 . . . 1 . . . . . . . . . . . . . 4 . . . . . . . . . 1 . . . Derelict Logs Recovered 10 | . . . . 1 . . . 1 . 2 . . 2 2 1 . . . . 1 . . . . . . . . . . . . Drone Launches . | . . . . . . . . . . . . . . . . . . . . . . . . . . . . . . . . . Drone Recoveries . | . . . . . . . . . . . . . . . . . . . . . . . . . . . . . . . . . Exploration | -11 -10 -10 -10 -9 -8 -7 -7 -7 -7 -6 -6 -6 -6 -6 -5 -5 -5 -5 -5 -4 -4 -4 -4 -4 -3 -3 -3 -2 -2 -2 -1 -1 ------------- Run | Scr Mat Min Exi Min Mat Fac Low Low Dat Pro Fac Low Low Zio Pro Fac Upp Upp Zhi Pro Fac Upp Upp War Pro Res Tes Res Qua Sec Acc Com Turns Passed 23290 | 195 1136 140 395 539 1751 1624 580 683 257 363 1069 539 430 525 207 1025 486 370 155 368 1315 914 231 290 147 999 806 885 983 1205 1467 1211 Spaces Moved 22362 | 101 454 45 180 370 840 1342 737 729 265 385 932 672 580 808 268 964 591 456 186 464 1268 1037 245 439 257 950 726 949 1199 1368 1380 1175 Core 7 | 6 . . . . . . . . . . . . . . . . . . . . . . . . . 1 . . . . . . Treads 1752 | 95 454 45 176 . 619 363 . . . . . . . . . . . . . . . . . . . . . . . . . . Legs . | . . . . . . . . . . . . . . . . . . . . . . . . . . . . . . . . . Wheels 595 | . . . 4 370 221 . . . . . . . . . . . . . . . . . . . . . . . . . . . Hover 20008 | . . . . . . 979 737 729 265 385 932 672 580 808 268 964 591 456 186 464 1268 1037 245 439 257 949 726 949 1199 1368 1380 1175 Flight . | . . . . . . . . . . . . . . . . . . . . . . . . . . . . . . . . . Fastest Speed 37 | 50 160 180 140 110 100 72 72 72 72 72 65 65 63 63 63 63 64 64 64 64 64 64 64 52 52 37 50 37 44 44 38 38 Average Speed 71 | 153 174 197 218 110 162 102 72 73 74 72 65 65 64 63 63 63 64 64 64 64 64 65 80 59 52 53 50 49 50 52 54 45 Slowest Speed 1700 | 160 180 220 220 140 183 205 72 142 146 72 65 65 65 63 63 68 64 64 64 64 134 134 134 64 52 1700 50 51 60 122 122 126 Overloaded Moves 606 | . . . . . . . . . . . . . . . . . . . . . . . . . . 53 . 63 52 80 282 76 Propulsion Burnouts . | . . . . . . . . . . . . . . . . . . . . . . . . . . . . . . . . . Robots Hopped . | . . . . . . . . . . . . . . . . . . . . . . . . . . . . . . . . . Cave-ins Triggered . | . . . . . . . . . . . . . . . . . . . . . . . . . . . . . . . . . Exploration Rate (%) 51 | 7 48 7 59 72 48 33 68 69 78 59 25 73 81 84 44 26 63 68 60 64 24 66 30 52 50 28 72 25 87 62 39 23 Regions Visited 32 Branch Regions 23 Pre-discovered Areas 8 | . . . 1 . . . . . 1 . . 1 . . . 1 . . 3 1 . . . . . . . . . . . . Known Exits Taken 23 | . . . . . . 1 . . . 1 1 1 1 1 1 1 1 1 1 1 1 1 1 1 1 1 1 1 1 1 1 . Unknown Exits Taken 9 | 1 1 1 1 1 1 . 1 1 1 . . . . . . . . . . . . . . . . . . . . . . . Scrap Searched 21 | . . . . 1 . . 3 1 . 1 . 4 . 4 1 . 1 1 . 1 . 2 . . 1 . . . . . . . Spaces Dug 323 | . . . . 5 . 10 21 11 . 1 15 7 4 . 8 15 18 1 . 4 35 . 2 . 3 39 15 20 15 21 37 16 Terrain Destroyed 1157 | . . . . 26 49 10 58 31 . 1 15 52 30 . 8 47 37 141 . 64 35 108 3 . 3 57 15 20 91 72 104 80 Melee 223 | . . . . . . 10 3 10 . 1 15 7 4 . 7 13 3 1 . 2 33 . . . 3 29 9 18 13 12 24 6 Projectile 71 | . . . . 5 . . . 1 . . . 1 . . 1 2 . . . 2 2 . 3 . . 10 6 2 2 11 13 10 AOE 863 | . . . . 21 49 . 55 20 . . . 44 26 . . 32 34 140 . 60 . 108 . . . 18 . . 76 49 67 64 Terrain Rammed . | . . . . . . . . . . . . . . . . . . . . . . . . . . . . . . . . . Walls Destroyed . | . . . . . . . . . . . . . . . . . . . . . . . . . . . . . . . . . Machines Disabled . | . . . . . . . . . . . . . . . . . . . . . . . . . . . . . . . . . Actions | -11 -10 -10 -10 -9 -8 -7 -7 -7 -7 -6 -6 -6 -6 -6 -5 -5 -5 -5 -5 -4 -4 -4 -4 -4 -3 -3 -3 -2 -2 -2 -1 -1 --------- Run | Scr Mat Min Exi Min Mat Fac Low Low Dat Pro Fac Low Low Zio Pro Fac Upp Upp Zhi Pro Fac Upp Upp War Pro Res Tes Res Qua Sec Acc Com Total 27989 | 123 694 66 182 445 1139 1552 772 835 316 463 1344 731 614 826 289 1312 666 513 212 514 1620 1221 270 464 264 1354 1120 1322 1525 1674 1921 1626 Wait 3363 | 4 156 1 . 26 148 113 8 59 5 69 352 16 1 2 2 264 46 27 . 14 222 95 12 . 2 294 292 294 248 139 341 111 Move 22330 | 100 453 44 179 369 839 1341 736 728 264 384 931 671 579 807 267 963 590 455 185 463 1267 1036 244 438 256 949 725 948 1198 1367 1379 1175 Hop . | . . . . . . . . . . . . . . . . . . . . . . . . . . . . . . . . . Pick Up 244 | 4 14 1 3 8 25 18 3 1 9 . 10 2 4 6 2 11 . 3 4 5 9 13 . 4 . 8 15 10 14 9 11 18 Fast Attach 111 | 7 . . . 1 7 8 3 3 5 2 2 2 3 1 1 6 1 . 6 1 2 3 . 6 . 7 3 5 3 11 2 10 Attach 112 | . 4 1 . 4 6 4 1 3 6 . 5 2 5 2 2 6 2 5 1 4 5 5 2 . . 4 1 3 3 5 13 8 Detach 57 | . . . . . 5 6 1 3 1 2 2 2 1 . 1 1 1 5 1 1 1 2 3 . . 1 . . 2 2 6 7 Swap 292 | . 2 . . 6 14 9 2 1 1 3 10 4 1 1 1 11 7 4 2 4 21 9 2 3 2 13 25 16 11 39 40 28 Drop 257 | . 2 . . 1 32 21 6 4 14 . 5 4 5 7 3 13 3 . 8 6 10 16 . 9 . 9 17 13 12 6 9 22 Fire 391 | 8 63 19 . 30 63 8 9 4 8 . . 14 8 . 3 8 3 9 . 10 2 14 7 . . 13 12 2 5 23 23 23 Melee 814 | . . . . . . 24 3 23 2 3 27 14 7 . 7 29 13 5 5 6 81 21 . 4 4 56 28 31 27 73 97 224 Ram . | . . . . . . . . . . . . . . . . . . . . . . . . . . . . . . . . . Kick . | . . . . . . . . . . . . . . . . . . . . . . . . . . . . . . . . . Crush . | . . . . . . . . . . . . . . . . . . . . . . . . . . . . . . . . . Escape Stasis 2 | . . . . . . . . . . . . . . . . . . . . . . . . . . . . . 2 . . . Rewire 8 | . . . . . . . . 6 . . . . . . . . . . . . . . . . . . 2 . . . . . Trap 8 | . . . . . . . . . 1 . . . . . . . . . . . . 7 . . . . . . . . . . Miscellaneous . | . . . . . . . . . . . . . . . . . . . . . . . . . . . . . . . . . Route ------- -11/Scrapyard -10/Materials (discovered 2 exits: [*Mat] / [*Min]) -10/Mines -10/Exiles -9/Mines -8/Materials -7/Factory (discovered 4 exits: *Fac / Sto / *Low x2) -7/Lower Caves -7/Lower Caves (discovered 2 exits: *Fac / *Dat) -7/Data Miner -6/Proximity Caves -6/Factory (discovered 6 exits: *Fac x2 / *Low x2 / Ext x2) -6/Lower Caves -6/Lower Caves (discovered 2 exits: *Fac / *Zio) -6/Zion -5/Proximity Caves -5/Factory (discovered 4 exits: *Fac x2 / *Upp x2) -5/Upper Caves -5/Upper Caves (discovered 2 exits: *Fac / *Zhi) -5/Zhirov -4/Proximity Caves -4/Factory (discovered 3 exits: *Upp x2 / Arm) -4/Upper Caves -4/Upper Caves (discovered 2 exits: Res / *War) -4/Warlord -3/Proximity Caves -3/Research (discovered 3 exits: *Res / *Tes x2) -3/Testing -2/Research (discovered 4 exits: *Acc x2 / *Qua x2) -2/Quarantine (discovered 2 exits: *Acc / *Sec) -2/Section 7 -1/Access (discovered 2 exits: Sur / *Com) -1/Command (discovered 2 exits: Sur x2) By MAIN.C's Side History --------- Turn | Location | Event 3 | -11/Scrapyard | Discovered new exit (range 15) 196 | -11/Scrapyard | Entered Materials 319 | -10/Materials | Build established: Mutant 818 | -10/Materials | Build established: Hauler-Mutant 929 | -10/Materials | Discovered new exit (range 10) 1294 | -10/Materials | Discovered new exit (range 9) 1332 | -10/Materials | Entered Mines 1348 | -10/Mines | Core integrity fell below 50% 1461 | -10/Mines | Deemed a non-threat by the Exiles lab entrance 1463 | -10/Mines | Discovered new exit (range 5) 1472 | -10/Mines | Entered Exiles 1533 | -10/Exiles | Met 8R-AWN 1568 | -10/Exiles | Met EX-HEX 1669 | -10/Exiles | Met EX-DEC 1717 | -10/Exiles | Met EX-BIN 1755 | -10/Exiles | Learned location of Zion (-6) 1843 | -10/Exiles | Discovered new exit (range 14) 1867 | -10/Exiles | Entered Mines 1897 | -9/Mines | Met a Derelict bent on vengeance 1964 | -9/Mines | Learned 2 Materials zone layouts 1995 | -9/Mines | Assembled infested the area 2143 | -9/Mines | System corruption reached 10% 2173 | -9/Mines | Lost 3 parts (2n1w) 2312 | -9/Mines | Received a Rocket Launcher from a helpful Derelict 2372 | -9/Mines | Discovered new exit (range 16) 2406 | -9/Mines | Entered Materials 2406 | -8/Materials | Evolved 4 slots: Propulsion x1, Utility x3 2696 | -8/Materials | Build established: Scavenger-Mutant 2982 | -8/Materials | Discovered new exit (range 5) 3160 | -8/Materials | Build established: Hauler-Mutant 3532 | -8/Materials | Build established: Scavenger-Mutant 3867 | -8/Materials | Build established: Hauler-Mutant 4157 | -8/Materials | Entered Factory 4157 | -7/Factory | Evolved 2 slots: Utility x2 4598 | -7/Factory | Discovered new exit (range 6) 4608 | -7/Factory | Build established: Hacker-Mutant 4657 | -7/Factory | Identified exit to Factory 4887 | -7/Factory | Fabricated Cmb. Airjet? 5018 | -7/Factory | Fabricated Cmb. Airjet? 5181 | -7/Factory | Identified exit to Storage 5181 | -7/Factory | Identified exit to Lower Caves 5781 | -7/Factory | Entered Lower Caves 5881 | -7/Lower Caves | Build established: Gladiator 6057 | -7/Lower Caves | Spotted B-75 Beast 6124 | -7/Lower Caves | Discovered new exit (range 8) 6125 | -7/Lower Caves | Encountered a Warlord checkpoint 6361 | -7/Lower Caves | Entered another Lower Caves area 6411 | -7/Lower Caves | Discovered exit to Factory (range 9) 6437 | -7/Lower Caves | Attacked by a delusional Derelict stockpiling Unaware 6562 | -7/Lower Caves | Encountered a Warlord checkpoint 6639 | -7/Lower Caves | Learned Factory terminal intel 6872 | -7/Lower Caves | Build established: Commander-Gladiator 6994 | -7/Lower Caves | Discovered new exit (range 15) 7044 | -7/Lower Caves | Entered Data Miner 7044 | -7/Data Miner | Accompanied by 4 allies 7044 | -7/Data Miner | Discovered new exit (range 6) 7060 | -7/Data Miner | Met Data Miner 7075 | -7/Data Miner | Learned location of Section 7 (-2) 7075 | -7/Data Miner | Acquired the access code to Warlord's prototype stash 7087 | -7/Data Miner | Received God Mode back door access code from Data Miner 7129 | -7/Data Miner | Destroyed Data Miner 7132 | -7/Data Miner | Data Conduit disabled 7136 | -7/Data Miner | Found Prototype Hackware 7138 | -7/Data Miner | Found Prototype Hackware 7140 | -7/Data Miner | Found Prototype Hackware 7301 | -7/Data Miner | Entered Proximity Caves 7315 | -6/Proximity Caves | Learned Factory emergency access door positions 7483 | -6/Proximity Caves | Build established: Gladiator 7488 | -6/Proximity Caves | Learned Factory stockpile data 7642 | -6/Proximity Caves | Discovered exit to Factory (range 3) 7664 | -6/Proximity Caves | Entered Factory 7664 | -6/Factory | Evolved 2 slots: Propulsion x1, Utility x1 7667 | -6/Factory | Loaded intel: 22 terminal locations 7667 | -6/Factory | Identified System Mapper 7669 | -6/Factory | Identified Ghost Barrier 7693 | -6/Factory | Identified exit to Lower Caves 7693 | -6/Factory | Identified exit to Extension 7798 | -6/Factory | Central database locked down 7798 | -6/Factory | Discovered new exit (range 6) 7805 | -6/Factory | Fabricated Mni. Smartbomb Launcher? 7935 | -6/Factory | Fabricated Exp. Terrain Scan Processor (x1) 8012 | -6/Factory | Fabricated Exp. Terrain Scanner? 8013 | -6/Factory | Build established: Hacker-Mutant 8166 | -6/Factory | Repaired Cmb. Airjet 8435 | -6/Factory | Fabricated P-60 Hacker? 8469 | -6/Factory | Identified Quantum Router 8565 | -6/Factory | Repaired Enh. Nuclear Core 8577 | -6/Factory | Local fabrication network quarantined 8611 | -6/Factory | Repaired Greatsword 8709 | -6/Factory | Discovered new exit (range 8) 8714 | -6/Factory | First assault squad dispatched 8733 | -6/Factory | Entered Lower Caves 9081 | -6/Lower Caves | Learned location of Extension (-6) 9081 | -6/Lower Caves | Learned Armory emergency access door positions 9081 | -6/Lower Caves | Learned Research stockpile data 9081 | -6/Lower Caves | Learned Factory terminal intel 9081 | -6/Lower Caves | Learned Armory terminal intel 9081 | -6/Lower Caves | Learned Research garrison access intel 9251 | -6/Lower Caves | Discovered new exit (range 4) 9252 | -6/Lower Caves | Identified exit to Lower Caves 9272 | -6/Lower Caves | Entered another Lower Caves area 9313 | -6/Lower Caves | Discovered new exit (range 12) 9321 | -6/Lower Caves | Learned location of 1 exit from Factory 9323 | -6/Lower Caves | Spotted B-75 Beast 9346 | -6/Lower Caves | Identified exit to Factory 9444 | -6/Lower Caves | Encountered a Warlord checkpoint 9593 | -6/Lower Caves | Found Alien Artifact 9593 | -6/Lower Caves | Identified Core Expander 9593 | -6/Lower Caves | Installed Core Expander, added new Propulsion slot 9676 | -6/Lower Caves | Discovered new exit (range 13) 9701 | -6/Lower Caves | Identified exit to Zion 9702 | -6/Lower Caves | Entered Zion 9747 | -6/Zion | System corruption cleaned by Quarantine Array 9778 | -6/Zion | Discovered new exit (range 11) 9801 | -6/Zion | Found Prototype Launcher 9821 | -6/Zion | Identified Rocket Array 9875 | -6/Zion | Acquired unknown access codes intercepted by a Zionite 9908 | -6/Zion | Given A8's code to call for help 10031 | -6/Zion | Learned 4 Factory zone layouts 10070 | -6/Zion | Learned Factory garrison access intel 10108 | -6/Zion | Found Prototype Device 10111 | -6/Zion | Identified Phasing AFG 10222 | -6/Zion | Identified exit to Proximity Caves 10227 | -6/Zion | Entered Proximity Caves 10396 | -5/Proximity Caves | Acquired the password to a Derelict Tinkerer's latest research 10434 | -5/Proximity Caves | Entered Factory 10434 | -5/Factory | Evolved 2 slots: Power x1, Utility x1 10435 | -5/Factory | Identified exit to Factory 10437 | -5/Factory | Loaded intel: 20 terminal locations 10438 | -5/Factory | Loaded intel: 4 garrison access locations 10473 | -5/Factory | Found Mni. Smartbomb Launcher 10492 | -5/Factory | Repaired Cmb. Airjet 10510 | -5/Factory | Repaired Broken Adv. Sensor Array 10740 | -5/Factory | Identified exit to Upper Caves 10879 | -5/Factory | Discovered exit to Factory (range 14) 10886 | -5/Factory | Fabricated Exp. Sensor Array? 11028 | -5/Factory | Fabricated Exp. Signal Interpreter? 11114 | -5/Factory | Repaired Adv. Focal Shield 11239 | -5/Factory | Local fabrication network quarantined 11459 | -5/Factory | Entered Upper Caves 11459 | -5/Upper Caves | Accompanied by 3 allies 11505 | -5/Upper Caves | Attacked by a faux Warlord 11810 | -5/Upper Caves | Discovered new exit (range 15) 11818 | -5/Upper Caves | Encountered a Warlord checkpoint 11861 | -5/Upper Caves | Identified exit to Upper Caves 11945 | -5/Upper Caves | Entered another Upper Caves area 11945 | -5/Upper Caves | Accompanied by 3 allies 11951 | -5/Upper Caves | Spotted B-75 Beast 11972 | -5/Upper Caves | Discovered exit to Factory (range 2) 12000 | -5/Upper Caves | Encountered a Warlord checkpoint 12263 | -5/Upper Caves | Discovered new exit (range 17) 12289 | -5/Upper Caves | Identified exit to Zhirov 12315 | -5/Upper Caves | Entered Zhirov 12315 | -5/Zhirov | Discovered new exit (range 3) 12327 | -5/Zhirov | Met Zhirov 12341 | -5/Zhirov | Learned location of Quarantine (-2) 12341 | -5/Zhirov | Learned location of Testing (-3) 12341 | -5/Zhirov | Learned location of Command (-1) 12345 | -5/Zhirov | Zhirov requested help retrieving the SGEMP Prototype 12362 | -5/Zhirov | Found Alien Artifact 12362 | -5/Zhirov | Identified Integrated Reactor 12362 | -5/Zhirov | Installed Integrated Reactor, increased core energy generation (+10) 12445 | -5/Zhirov | Found Alien Artifact 12470 | -5/Zhirov | Identified exit to Proximity Caves 12470 | -5/Zhirov | Entered Proximity Caves 12703 | -4/Proximity Caves | Discovered exit to Factory (range 28) 12778 | -4/Proximity Caves | Build established: Hacker-Scout 12838 | -4/Proximity Caves | Entered Factory 12838 | -4/Factory | Evolved 2 slots: Utility x2 12963 | -4/Factory | Identified exit to Upper Caves 12963 | -4/Factory | Identified exit to Armory 13137 | -4/Factory | Build established: Hacker-Ninja 13138 | -4/Factory | Repaired Imp. Medium Armor Plating 13271 | -4/Factory | Fabricated Exp. ECM Suite (x1) 13652 | -4/Factory | Central database locked down 13864 | -4/Factory | Identified Transdimensional Reconstructor 14153 | -4/Factory | Entered Upper Caves 14474 | -4/Upper Caves | Build established: Hacker-Scout 14912 | -4/Upper Caves | Encountered a Warlord checkpoint 15016 | -4/Upper Caves | Discovered new exit (range 13) 15031 | -4/Upper Caves | Identified exit to Upper Caves 15067 | -4/Upper Caves | Entered another Upper Caves area 15098 | -4/Upper Caves | Discovered new exit (range 21) 15178 | -4/Upper Caves | Discovered new exit (range 13) 15298 | -4/Upper Caves | Identified exit to Warlord 15298 | -4/Upper Caves | Entered Warlord 15317 | -4/Warlord | Discovered new exit (range 25) 15320 | -4/Warlord | System corruption cleaned by Quarantine Array 15391 | -4/Warlord | Warlord's base attacked by MAIN.C 15463 | -4/Warlord | Met Warlord 15469 | -4/Warlord | Opened Warlord's prototype stash 15483 | -4/Warlord | Found Prototype Device 15483 | -4/Warlord | Identified Thermal Barrier 15500 | -4/Warlord | Found Prototype Reactor 15572 | -4/Warlord | Opened side exit 15587 | -4/Warlord | Identified exit to Proximity Caves 15588 | -4/Warlord | Entered Proximity Caves 15723 | -3/Proximity Caves | Discovered new exit (range 18) 15734 | -3/Proximity Caves | Identified exit to Research 15735 | -3/Proximity Caves | Entered Research 15735 | -3/Research | Evolved 2 slots: Propulsion x1, Utility x1 15737 | -3/Research | Loaded intel: 4 garrison access locations 15796 | -3/Research | Discovered new exit (range 28) 15888 | -3/Research | Identified exit to Research 15956 | -3/Research | Found Imp. Powered Armor 16147 | -3/Research | Identified exit to Testing 16317 | -3/Research | Repaired Exp. Propulsion Shielding 16322 | -3/Research | Fabricated Adv. Melee Analysis Suite? 16391 | -3/Research | Fabricated Adv. Hacking Suite? 16399 | -3/Research | Repaired Exp. Terrain Scanner 16490 | -3/Research | Repaired Fusion Reactor 16553 | -3/Research | Repaired Nanoactuators 16637 | -3/Research | Build established: Hacker-Mutant 16654 | -3/Research | Identified Vortex Chain Reactor 16700 | -3/Research | Found Prototype Launcher 16734 | -3/Research | Entered Testing 16765 | -3/Testing | Spotted PL-D1TDLEP4M7 16773 | -3/Testing | Rewired PL-D1TDLEP4M7 16902 | -3/Testing | Destroyed PL-D1TDLEP4M7 16907 | -3/Testing | Found Prototype Slashing Weapon 16908 | -3/Testing | Identified Nanosword 17160 | -3/Testing | Spotted Alpha 7 17261 | -3/Testing | Repaired Exp. Propulsion Shielding 17360 | -3/Testing | Found Prototype Protection 17434 | -3/Testing | Repaired Imp. Powered Armor 17455 | -3/Testing | Discovered exit to Research (range 15) 17533 | -3/Testing | Repaired Cmb. Gravmag System 17540 | -3/Testing | Entered Research 17540 | -2/Research | Warlord forces began assault on 0b10 17540 | -2/Research | Evolved 2 slots: Utility x1, Weapon x1 17551 | -2/Research | Identified exit to Quarantine 17650 | -2/Research | Research machine network offline 17710 | -2/Research | Discovered new exit (range 29) 17734 | -2/Research | Found Prototype Device 17734 | -2/Research | Identified Exp. Shock Absorption System 17774 | -2/Research | Build established: Hacker-Ninja 17886 | -2/Research | Spotted Striker 17893 | -2/Research | Spotted Striker 17894 | -2/Research | Identified SHELL Armor 17935 | -2/Research | Met up with Warlord 17940 | -2/Research | Spotted Executioner 17940 | -2/Research | Spotted Striker 17994 | -2/Research | Discovered new exit (range 29) 18009 | -2/Research | Borebot progress halted 18233 | -2/Research | Borebot progress halted 18237 | -2/Research | Borebot progress halted 18242 | -2/Research | Found Prototype Slashing Weapon 18242 | -2/Research | Identified Particle Cleaver 18421 | -2/Research | Build established: Hacker-Mutant 18421 | -2/Research | Spotted Striker 18421 | -2/Research | Spotted Striker 18423 | -2/Research | Spotted Executioner 18424 | -2/Research | Spotted Executioner 18425 | -2/Research | Entered Quarantine 18427 | -2/Quarantine | Spotted Alpha 7 18508 | -2/Quarantine | Found Prototype Processor 18513 | -2/Quarantine | Identified Exp. Target Analyzer 18537 | -2/Quarantine | Cryocooling Duct disabled 18552 | -2/Quarantine | Ambient heat levels rising (+20) 18552 | -2/Quarantine | Non-combat units ordered to evacuate 18626 | -2/Quarantine | Found Alien Artifact 18648 | -2/Quarantine | Found Alien Slashing Weapon 18648 | -2/Quarantine | Identified Sigix Broadsword 18726 | -2/Quarantine | Build established: Hacker-Ninja 18748 | -2/Quarantine | Identified Subatomic Replicator 18765 | -2/Quarantine | Found Alien Artifact 18773 | -2/Quarantine | Identified Dimensional Node Initializer 18812 | -2/Quarantine | Found Prototype Processor 18826 | -2/Quarantine | Identified Exp. Melee Analysis Suite 18958 | -2/Quarantine | Discovered new exit (range 27) 18994 | -2/Quarantine | Found Alien Artifact 19007 | -2/Quarantine | Repaired Exp. Propulsion Shielding? 19063 | -2/Quarantine | Repaired Imp. Powered Armor 19103 | -2/Quarantine | Repaired Adv. Reaction Control System 19160 | -2/Quarantine | Repaired Cld. Antigrav System 19270 | -2/Quarantine | Identified Core Reset Matrix 19361 | -2/Quarantine | Spotted Fortress 19394 | -2/Quarantine | Discovered new exit (range 5) 19396 | -2/Quarantine | Identified exit to Section 7 19408 | -2/Quarantine | Entered Section 7 19417 | -2/Section 7 | Found Alien Artifact 19417 | -2/Section 7 | Identified Integrity Redistributor 19417 | -2/Section 7 | Used Integrity Redistributor, redistributed integrity from core (-42) 19551 | -2/Section 7 | Found Integrated Reactor 19551 | -2/Section 7 | Installed Integrated Reactor, increased core energy generation (+10) 19718 | -2/Section 7 | Spotted S7 Guard 19720 | -2/Section 7 | Found Alien Artifact 19723 | -2/Section 7 | Identified Integrated Singularity Reactor 19723 | -2/Section 7 | Installed Integrated Singularity Reactor, increased core energy generation (+20) 19936 | -2/Section 7 | Spotted S7 Guard 19938 | -2/Section 7 | Found Alien Artifact 19941 | -2/Section 7 | Identified Core Membrane 19941 | -2/Section 7 | Installed Core Membrane, gained immunity to corruption 20010 | -2/Section 7 | Identified exit to Access 20059 | -2/Section 7 | Spotted S7 Guard 20061 | -2/Section 7 | Found Alien Artifact 20076 | -2/Section 7 | Initialized slip node 20157 | -2/Section 7 | Spotted B-99 Colossus 20176 | -2/Section 7 | Found Integrated Reactor 20176 | -2/Section 7 | Installed Integrated Reactor, increased core energy generation (+10) 20178 | -2/Section 7 | Found Integrated Reactor 20178 | -2/Section 7 | Installed Integrated Reactor, increased core energy generation (+10) 20180 | -2/Section 7 | Found Integrated Reactor 20180 | -2/Section 7 | Installed Integrated Reactor, increased core energy generation (+10) 20210 | -2/Section 7 | Found Alien Artifact 20210 | -2/Section 7 | Identified Integrated Dissipator 20210 | -2/Section 7 | Installed Integrated Dissipator, increased core heat dissipation (+20) 20229 | -2/Section 7 | Found Alien Artifact 20229 | -2/Section 7 | Identified LRC Storage 20229 | -2/Section 7 | Installed LRC Storage, increased inventory capacity (+2) 20231 | -2/Section 7 | Found Alien Artifact 20231 | -2/Section 7 | Identified LRC Energy Well 20231 | -2/Section 7 | Installed LRC Energy Well, increased energy storage capacity (+250) 20252 | -2/Section 7 | Build established: Hacker-Mutant 20348 | -2/Section 7 | Found Nanosword 20350 | -2/Section 7 | Found Nanosword 20351 | -2/Section 7 | Found Nanosword 20467 | -2/Section 7 | Found Integrity Redistributor 20492 | -2/Section 7 | Spotted S7 Guard 20524 | -2/Section 7 | Destroyed S7 Guard 20529 | -2/Section 7 | Found Alien Artifact 20529 | -2/Section 7 | Identified Core Regenerator 20529 | -2/Section 7 | Used Core Regenerator, restored core integrity (+149) 20613 | -2/Section 7 | Entered Access 20613 | -1/Access | Evolved 2 slots: Utility x2 20887 | -1/Access | Build established: Hacker-Ninja 21065 | -1/Access | Spotted B-99 Colossus 21077 | -1/Access | Discovered new exit (range 26) 21410 | -1/Access | Found Prototype Processor 21548 | -1/Access | Identified exit to Command 21613 | -1/Access | First assault squad dispatched 21725 | -1/Access | Identified Exp. Core Analyzer 21726 | -1/Access | Identified Integrated Heat Negator 21726 | -1/Access | Installed Integrated Heat Negator, increased core heat dissipation (+40) 21860 | -1/Access | Build established: Hacker-Gladiator 21993 | -1/Access | Fabricated Cmb. Linear Gravjet (x2) 22073 | -1/Access | Used Integrity Redistributor, redistributed integrity from core (-82) 22080 | -1/Access | Entered Command 22330 | -1/Command | First assault squad dispatched 22466 | -1/Command | Spotted Combat Programmer 22578 | -1/Command | Used Subatomic Replicator to replicate Sigix Broadsword 22592 | -1/Command | Met MAIN.C 22599 | -1/Command | 0b10 Conduit disabled 22644 | -1/Command | Destroyed MAIN.C Shell 22646 | -1/Command | Surrendered to MAIN.C 22646 | -1/Command | Loaded intel: 58 machine locations 22646 | -1/Command | Loaded intel: 111 trap records 22646 | -1/Command | Identified exit to Surface 22646 | -1/Command | Discovered exit to Surface (range 95) 22646 | -1/Command | Discovered exit to Surface (range 43) 22671 | -1/Command | Found Exp. Core Analyzer 22674 | -1/Command | Found Prototype Device 22674 | -1/Command | Identified Adv. Particle Accelerator 22679 | -1/Command | Found Prototype Device 22679 | -1/Command | Identified Femtoactuators 22682 | -1/Command | Found Prototype Device 22682 | -1/Command | Identified System Purifier 22685 | -1/Command | Found Vortex Chain Reactor 22688 | -1/Command | Found Vortex Chain Reactor 22691 | -1/Command | Found Exp. Target Analyzer 22710 | -1/Command | MAIN.C activated Command garrisons 22750 | -1/Command | Unknown forces attacked Command 22750 | -1/Command | Spotted EQ-005 22750 | -1/Command | Spotted EQ-000 22750 | -1/Command | Spotted EQ-004 22750 | -1/Command | Spotted EQ-001 22750 | -1/Command | Spotted EQ-002 22753 | -1/Command | Spotted EQ-003 22754 | -1/Command | Destroyed EQ-001 22766 | -1/Command | Destroyed EQ-000 22789 | -1/Command | Spotted EQ-006 22796 | -1/Command | Destroyed EQ-006 22836 | -1/Command | Spotted EQ-018 22836 | -1/Command | Spotted EQ-020 22836 | -1/Command | Spotted EQ-022 22836 | -1/Command | Spotted EQ-021 22836 | -1/Command | Spotted EQ-019 22836 | -1/Command | Spotted EQ-023 22850 | -1/Command | Destroyed EQ-018 22853 | -1/Command | Destroyed EQ-022 22861 | -1/Command | Spotted EQ-008 22861 | -1/Command | Spotted EQ-012 22873 | -1/Command | Destroyed EQ-008 22874 | -1/Command | Spotted EQ-029 22883 | -1/Command | Spotted EQ-009 22890 | -1/Command | Destroyed EQ-012 22905 | -1/Command | Destroyed EQ-029 22917 | -1/Command | Destroyed EQ-009 22954 | -1/Command | Spotted EQ-039 22954 | -1/Command | Spotted EQ-041 22954 | -1/Command | Spotted EQ-042 22954 | -1/Command | Spotted EQ-038 22961 | -1/Command | Spotted EQ-040 22966 | -1/Command | Destroyed EQ-042 22976 | -1/Command | Phase Generator disabled 22985 | -1/Command | Spotted EQ-056 23001 | -1/Command | Destroyed EQ-056 23007 | -1/Command | Spotted EQ-030 23013 | -1/Command | Destroyed EQ-030 23041 | -1/Command | Spotted EQ-059 23044 | -1/Command | Spotted EQ-043 23053 | -1/Command | Destroyed EQ-059 23065 | -1/Command | Spotted EQ-044 23080 | -1/Command | Destroyed EQ-044 23080 | -1/Command | Spotted EQ-070 23088 | -1/Command | Spotted EQ-063 23088 | -1/Command | Spotted EQ-035 23098 | -1/Command | Destroyed EQ-035 23101 | -1/Command | Spotted EQ-065 23102 | -1/Command | Destroyed EQ-043 23109 | -1/Command | Destroyed EQ-070 23110 | -1/Command | Spotted EQ-078 23113 | -1/Command | Spotted EQ-077 23116 | -1/Command | Destroyed EQ-063 23124 | -1/Command | Destroyed EQ-065 23126 | -1/Command | Spotted EQ-073 23136 | -1/Command | Destroyed EQ-077 23142 | -1/Command | Destroyed EQ-073 23147 | -1/Command | Spotted EQ-075 23151 | -1/Command | Destroyed EQ-078 23154 | -1/Command | Lost 4 parts (3u1w) 23172 | -1/Command | Destroyed 11 combat bots 23174 | -1/Command | Spotted EQ-094 23174 | -1/Command | Spotted EQ-093 23174 | -1/Command | Spotted EQ-084 23174 | -1/Command | Spotted EQ-085 23193 | -1/Command | Destroyed EQ-094 23196 | -1/Command | Found Prototype Processor 23196 | -1/Command | Identified Exp. Armor Integrity Analyzer 23223 | -1/Command | Spotted EQ-101 23236 | -1/Command | Spotted EQ-089 23249 | -1/Command | Destroyed EQ-101 23254 | -1/Command | Destroyed EQ-089 23281 | -1/Command | Spotted EQ-113 23288 | -1/Command | Attackers retreated from Command 23291 | *** | Fortifying 0b10! Last Messages --------------- 23246_ Critical hit. 23246_ Knocked back. 23248_ Core Membrane filtered system corruption (1). 23249_ Destroyed Com. HERF Cannon. 23249_ Nanosword follow-up attack on EQ-101. 23249_ EQ-101 destroyed. 23254_ EQ-089 destroyed. 23285_ EQ-113 suffers critical hit. 23285_ Destroyed Adv. Targeting Computer. 23287_ EQ-113 suffers critical hit. 23287_ EQ-113 destroyed. 23288_ ALERT: Enemy forces retreating. 23288_ Acquired 10 matter. MAIN.C: I admit your assistance was pivotal here. It looks like I was right to trust you. This attack appears to have been designed to merely test our defenses, although it was nearly effective enough to force me to take the conflict to the next level. Investigating the origins of these bots should be one of our highest priorities... Map ----- +----------------------------------------------------+ | ???????##+##+###+##+#????????????????????????????? | | ???????# #????????????????????????????? | | ?####### #????????????????????????????? | | ?# / #????????????????????????????? | | ?# ##### #????????????????????????????? | | ## #???# #???????????????????????????#? | | #???# #?????######################## | | "##?# #?????#????????????????????### | | #?# #?????#?#####################" | | #?# #?????#?#"" !!=[ | | #?# #?????#?#" = !=!%[ | | !!%#?# #?????#?# % !!%*= | | !!="?# #?????#?# ! % =!!!! | | !![%#?####+##########????#?#" !%=!* | | *!!!##??# #????#?# =! =!=/[ | | !* "#??#= #????#?# [ = ! | | !!=!!##?##!% !=!!! #????#?# % | | !!!|[####%#####%*=!! ##???#?# !%=! | | !%==%##==[!!!!#!=[*% "#???#?# M !! | | !*=%=[*[*[!**%**%!%!*"#???#?# ] %[ % " | | !%=[#=!%=%!=!!!===*!;##??#?# %!] !% "" | | %=!%%##===%%!!=[%[! ; ##?#?# ]=![%!! [ "" | | ##]*[###%[%%%!==!![%=; %#?###!*!!![!! % | | ?# ! ###*##*![!!* = !![####;%[%!! ! % | | ?# =*%%!=%%!]=!*=[!%*%=%!%=%*= =!%% %* | | ?# !!==!!%[!%=%%=%%%%@=%=%!!* !=[ " | | ?# !!=%[==]!!%[!%%%==%[|=[ 7%** " | | ?## ==!! !=!%!==![*####* !!! " | | ??# =%!!! =!!] %*##?# " "" " | | ??# !=% ! ###?# "" | | #?# !!! "##?###################### | | ### ###??????????????????????? | | ! ! #?######################## | | =]! * #????????????????????????? | | ##%=#### #????????????????????????? | | #"[!#??# ! #????????????????????????? | | ## #??# #????????????????????????? | | ?# #??# #????????????????????????? | | ?# #??# #????????????????????????? | | ?# ####+##### #????????????????????????? | | ## # ## #????????????????????????? | | # ## #????????????????????????? | | # ## #????????????????????????? | | # ## #????????????????????????? | | # ## "" #????????????????????????? | | ## # ## """ #????????????????????????? | | ## # + T" #????????????????????????? | | ## # ### """ #????????????????????????? | | ## ########### "" #????????????????????????? | | # ##### # #########????????????????? | +----------------------------------------------------+ Best States ------------- Heat Dissipation 112 Coolant Potential 120 Energy Generation 125 Energy Capacity 950 Matter Stores 300 Matter Capacity 600 Sight Range 16 Robot Scan Range 30 Terrain Scan Range 30 Terrain Scan Density 1010 ECM Strength 5 Jamming Range 16 Cloak Strength 3 Armor Coverage 1125 Resistance: TH 50 Core Shielding 40 Propulsion Shielding 90 Weapon Shielding 90 Melee Speed Boost 50 Evasion (%) 71 Targeting Accuracy 8 Melee Accuracy 20 Target Analysis 12 Core Analysis 15 Armor Integrity Analysis 90 Recoil Reduction 3 Force Boost 3 Offensive Hacking 42 Defensive Hacking 34 Item Schematics ----------------- Hcp. Storage Unit | -10/Materials | Hacked Cmb. Airjet | -8/Materials | Scanalyzed Adv. EMP Blaster | -7/Factory | Scanalyzed Combat Drone Bay | -7/Data Miner | Free Lgt. Regenerative Plating | -7/Data Miner | Free Exp. Flexi-carbon Leg | -7/Data Miner | Free Exp. Cesium-ion Thruster | -7/Data Miner | Free Exp. Terrain Scanner | -7/Data Miner | Free Exp. Terrain Scan Processor | -7/Data Miner | Free Exp. Targeting Computer | -7/Data Miner | Free Exp. ECM Suite | -7/Data Miner | Free Mni. Smartbomb Launcher | -7/Data Miner | Free Kinetic Spear | -7/Data Miner | Free Adv. Melee Analysis Suite | -6/Factory | Hacked Microactuators | -6/Factory | Scanalyzed Battle Rifle | -6/Zion | Free Slug Cannon | -6/Zion | Free Tactical Coordination Suite | -6/Zion | Free Exp. Signal Interpreter | -5/Factory | Hacked Mak. Transmission Jammer | -5/Factory | Scanalyzed Imp. Medium Armor Plating | -5/Factory | Scanalyzed Exp. Sensor Array | -5/Factory | Hacked Adv. Hacking Suite | -5/Upper Caves | Hacked Cmb. Gravmag System | -5/Upper Caves | Hacked Powered Armor | -5/Upper Caves | Hacked Assault Drone Bay | -5/Zhirov | Free Exp. Heat Sink | -5/Zhirov | Free Exp. Optical Array | -5/Zhirov | Free Imp. Arc Thrower | -5/Zhirov | Free Nanoactuators | -4/Factory | Hacked Adv. System Shield | -4/Factory | Scanalyzed Reaction Control System | -4/Factory | Scanalyzed Hyp. Mass Driver | -4/Factory | Scanalyzed Adv. Weight Redist. System | -4/Factory | Extracted Myomer Leg | -4/Factory | Extracted Micro-nuke Launcher | -4/Factory | Extracted Imp. Hardlight Generator | -4/Factory | Extracted Force Lance | -3/Research | Scanalyzed Mak. Cloaking Device | -3/Research | Scanalyzed Exp. Propulsion Shielding | -3/Research | Scanalyzed Med. Regenerative Plating | -3/Testing | Hacked Cmb. Linear Gravjet | -2/Quarantine | Hacked Robot Schematics ------------------ P-60 Hacker | -7/Factory | Hacked S-27 Virus | -7/Data Miner | Free G-50 Soldier | -7/Data Miner | Free G-67 Veteran | -7/Data Miner | Free X-72 Disruptor | -7/Data Miner | Free I-36 Angel | -7/Data Miner | Free Fabricated ------------ Cmb. Airjet | x2 | -7/Factory Cmb. Airjet | x2 | -7/Factory Mni. Smartbomb Launcher | x1 | -6/Factory Exp. Terrain Scan Processor | x1 | -6/Factory Exp. Terrain Scanner | x1 | -6/Factory P-60 Hacker | x2 | -6/Factory Exp. Sensor Array | x1 | -5/Factory Exp. Signal Interpreter | x1 | -5/Factory Exp. ECM Suite | x1 | -4/Factory Adv. Melee Analysis Suite | x1 | -3/Research Adv. Hacking Suite | x1 | -3/Research Cmb. Linear Gravjet | x2 | -1/Access Alien Tech Used ----------------- Core Expander Integrated Reactor Sigix Broadsword Integrity Redistributor Integrated Singularity Reactor Core Membrane Dimensional Node Initializer Integrated Dissipator LRC Storage LRC Energy Well Core Regenerator Integrated Heat Negator Subatomic Replicator Achievements -------------- None Challenges ------------ None Game ------ Seed ManeuveringRiotFirepult Manual? 0 Play Time 05:08:09 Cumulative 672.9 hours Start 2020.09.27 @ 21:56:16 End 2020.09.28 @ 03:16:23 Sessions 1 Manual Loads 0 Difficulty Rogue Special Mode None Game No. 474 Rogue 470 Adventurer 4 Explorer 0 Win Type 8 Total 72 Types 57/6/3/2/2/0/0/1/1 Lore% 94 Gallery% 96 Achievement% 96 Wizard Run 0 Options --------- ASCII 0 Keyboard 0 Movement Vi Keybinds 0 Fullscreen 0 Font 16/Terminus Map View 76x50 Tactical HUD 1 Map Filters NONE Filters NONE Steam 1 RUN: dd284335-6f48-4932-90f3-5dc6ef1b9d3d